{"text_format":"1","workbook":"xlsx","n_sheets":15,"sheets":["START","Dane projektowe","Separacja","Dobór_kanałów_A","Dobór_kanałów_B","Dobór_kanałów_C","Dobór_kanałów_siatkowych","Dobór_rur","Schemat_szafy","separator","Kanały","Typy_kabli","Kable_sygnałowe","Kable_elektroenergetyczne","Szafy"],"not_rendered":{"charts":0,"images":0,"macros":1,"external_links":0,"defined_names":1,"comments":0,"pivot_tables":0},"unopened":[],"bounds":{"document_bytes":16777216,"sheet_cells":100000,"rows_first":2000,"rows_last":500,"rows_between":2000,"halvings":0,"cell_chars":16384,"cell_head_chars":4096},"cells_cut":0,"cells_raw":0,"read":"whole","date_system":"1900"}

{"sheet":"START","index":0,"n_rows":23,"n_cols":3,"rows_kept":23,"cut":false,"hidden":false,"merged":[[4,1,4,2]]}
[null,"Opracowanie: EMITER Sp. z o.o."]
[null,"Aktualna wersja do pobrania ze strony: "]
[null,"https://www.emiter.net.pl/do-pobrania/emiternet-tools.html"]
[]
[null,"Spis treści - linki do poszczególnych stron"," "]
[]
[null,"Dobór szacunkowej ilościu punktów abonenckich i kabli"]
[]
[null,"Dobór odstępu separacyjnego pomiędy okablowaniem informatycznym a okablowaniem energetycznym"]
[]
[null,"Dobór kanałów EmiterNet (metoda 1) - obliczenie liczby kabli w kanale"]
[]
[null,"Dobór kanałów EmiterNet (metoda 2) - wyszukanie rozmiaru kanału do podanej liczby kabli"]
[]
[null,"Dobór kanałów EmiterNet (metoda 3) - wyszukanie przykładowych kanałów wg 3 kryteriów"]
[]
[null,"Dobór kanałów siatkowych"]
[]
[null,"Dobór rur instalacyjnych"]
[]
[null,"Schemat elewacji szafy teleinformatycznej"]
[]
[null,"Uwaga: arkusz przetestowany w programie MS Excel; w programach innych firm niektóre funkcje mogą nie działać."]

{"sheet":"Dane projektowe","index":1,"n_rows":33,"n_cols":7,"rows_kept":33,"cut":false,"hidden":false,"merged":[[3,1,3,2],[5,1,5,2]]}
[]
[]
[]
[null,"Dobór szacunkowej ilościu punktów abonenckich i kabli "]
[]
[null,"Poniższy dobór nie obejmuje wszyskich możliwości i stanowi jedynie wstępny punkt do dalszych rozważań projektowych"]
[]
[null,"Proszę wprowadzić odpowiednie dane","Edytować można tylko ciemnoszare pola"]
[]
[null,"Podaj kryterium do obliczeń","Wg podanej ilości punktów abonenckich",null,{"$f":"IFERROR(VLOOKUP(C10,Typy_kabli!A91:B92,2,FALSE),\"\")","v":2},null,"wybierz opcję"]
[]
[null,{"$f":"IF(E10=1,\"Podaj powierzchnię użytkową obiektu [m2]\",\"Podaj liczbę punktów abonenckiech (każdy 2xRJ45)\")","v":"Podaj liczbę punktów abonenckiech (każdy 2xRJ45)"},null,null,null,null,{"$f":"IF(E10=1,\"podaj wartość powierzchni\",\"podaj liczbę punktów abonenckich\")","v":"podaj liczbę punktów abonenckich"}]
[]
[null,"Podaj długość najkrótszego toru [m]",null,null,"kontrola wprowadzanych danych od 0-90m",null,"podaj wartość"]
[null,"Podaj długość najdłuższego toru [m]",null,null,null,null,"podaj wartość"]
[null,"Wybierz kryterium doboru liczby kabli",null,null,{"$f":"IFERROR(VLOOKUP(C16,Typy_kabli!A87:B89,2,FALSE),\"\")","v":""},{"$f":"IF(OR(C14=\"\",C15=\"\",C16=\"\"),\"\",IF(E16=1,(C14+C15)/2*0.66,IF(E16=2,(C14+C15)/2,(C14+C15)/2*1.33)))","v":""},"wybierz opcję"]
[null,"Średnia długość toru [m]",{"$f":"IF(F16=\"\",\"\",F16&\" m\")","v":""}]
[]
[null,"Typ wybranych paneli krosowych",null,null,{"$f":"IFERROR(VLOOKUP(C19,Typy_kabli!A94:B95,2,FALSE),\"\")","v":""},null,"wybierz opcję"]
[]
[null,"Projekt powinien obejmować szacunkowo:"]
[null,{"$f":"IF(E10=1,\"Liczba punktów abonenckich (obliczona)\",\"Liczba punktów abonenckich (zakładana)\")","v":"Liczba punktów abonenckich (zakładana)"},{"$f":"IF(C12=\"\",\"\",E22&\" (2xRJ45)\")","v":""},null,{"$f":"IF(E10=1,F22,C12)","v":0},{"$f":"C12/10","v":0}]
[null,{"$f":"IF(C22<>0,\"UWAGA: każdy jeden punkt abonencki = 2xRJ45\",\"\")","v":"UWAGA: każdy jeden punkt abonencki = 2xRJ45"}]
[]
[null,"Wymagana szacunkowa sumaryczna długość kabli instalacyjnych",{"$f":"E25","v":""},null,{"$f":"IF(F16=\"\",\"\",IF(E10=1,(F16*F22*2)+F22*3,(F16*E22*2)+E22*3))","v":""}]
[null,{"$f":"IF(E19=\"\",\"\",IF(E19=1,\"Wymagana liczba gniazd RJ45 - minimum\", \"Wymagana liczba gniazd RJ45 beznarzędziowych - min.\"))","v":""},{"$f":"IF(C25=\"\",\"\",E26)","v":""},null,{"$f":"IF(E19=\"\",\"\",IF(E19=1,E22*2,E22*4))","v":""}]
[null,{"$f":"IF(E19=\"\",\"\",IF(E19=1,\"Wymagana liczba paneli 24xRJ45 narzędziowych\",\"Wymagana liczba paneli 24xRJ45 beznarzędziowych\"))","v":""},{"$f":"IF(C25=\"\",\"\",E27)","v":""},null,{"$f":"IF(E19=\"\",\"\",ROUNDUP(E22*2/24,0))","v":""}]
[null,{"$f":"IF(E19=\"\",\"\",\"Wymagana liczba paneli porządkowych (minimum)\")","v":""},{"$f":"IF(C25=\"\",\"\",E28)","v":""},null,{"$f":"IF(E19=\"\",\"\",ROUNDUP(E27/2,0))","v":""}]
[]
[]
[null,"Uwagi:"]
[null,"Długości torów należy liczyć po trasie ułożenia kabla wraz z wszelkimi zapasami. "]
[null,"Uzyskane wyliczenia mają charakter orientacyjny, szacunkowy."]

{"sheet":"Separacja","index":2,"n_rows":56,"n_cols":11,"rows_kept":56,"cut":false,"hidden":false,"merged":[[5,1,5,2],[3,1,3,2],[7,1,7,2],[41,1,41,2]]}
[]
[]
[]
[null,"Separacja elektromagnetyczna"]
[]
[null,"Dobór odstępu separacyjnego pomiędy okablowaniem informatycznym, a okablowaniem energetycznym"]
[]
[null,"Poniższy dobór ma charket informacyjny. Opracowano na podstawie PN-EN 50174-2."]
[]
[null,"Proszę wprowadzić odpowiednie dane","Edytować można tylko ciemnoszare pola"]
[]
[null,"Rodzaj kabla/przewodu sygnałowego",null,null,{"$f":"IFERROR(VLOOKUP(C12,Typy_kabli!A3:G16,7,FALSE),\"\")","v":""},null,null,null,null,null,"wybierz opcję"]
[null,null,{"$f":"IFERROR(VLOOKUP(C12,Typy_kabli!A3:B16,2,FALSE),\"\")","v":""}]
[null,"Klasyfikacja rozdzielania kabla",{"$f":"IFERROR(VLOOKUP(C12,Typy_kabli!A3:G16,6,FALSE),\"\")","v":""}]
[]
[null,"Rodzaj kabla/przewodu elektroenergetycznego",null,null,{"$f":"IFERROR(VLOOKUP(C16,Typy_kabli!A72:B73,2,FALSE),\"\")","v":""},null,null,null,null,null,"wybierz opcję"]
[]
[null,"Obciążalność prądowa kabla/przewodu elektroenergetycznego",null,null,{"$f":"IFERROR(VLOOKUP(C18,Typy_kabli!A76:B82,2,FALSE),\"\")","v":""},{"$f":"E18/20","v":{"$error":"#VALUE!"}},null,null,null,null,"wybierz opcję"]
[]
[null,"Liczba kabli/przewodów elektroenergetycznych",null,null,{"$f":"IFERROR(VLOOKUP(C20,Typy_kabli!C52:D61,2,FALSE),\"\")","v":""},{"$f":"IFERROR(VLOOKUP(C20,Typy_kabli!C52:E61,3,FALSE),\"\")*E16*F18","v":{"$error":"#VALUE!"}},{"$f":"IF(F20>=90, 90,F20)","v":{"$error":"#VALUE!"}},{"$f":"IFERROR(VLOOKUP(G20,Typy_kabli!E52:E61,1,TRUE),\"\")","v":""},{"$f":"IF(G20>H20,1,0)","v":{"$error":"#VALUE!"}},{"$f":"INDEX(Typy_kabli!E52:E61,MATCH(H20,Typy_kabli!E52:E61,0)+I20,1)","v":{"$error":"#N/A"}},"wybierz opcję"]
[null,{"$f":"IF(E16=3,\"Przyjęta do obliczeń liczba kabli 3f\", \"\")","v":""},{"$f":"IFERROR(IF(E16=3,F20/E16/F18,\"\"),\"\")","v":""}]
[]
[null,"Rodzaj kanału",null,null,{"$f":"IFERROR(VLOOKUP(C23,Typy_kabli!A64:D69,E12,FALSE),\"\")","v":""},null,null,null,null,null,"wybierz opcję"]
[null,null,{"$f":"IFERROR(VLOOKUP(C23,Typy_kabli!A64:E69,5,FALSE),\"\")","v":""}]
[]
[null,"Minimalna separacja {S}",{"$f":"IF(E23<>\"\",E23&\" mm\",\"\")","v":""}]
[]
[null,"Współczynnik mocy {P}",{"$f":"IFERROR(E28,\"\")","v":""},null,{"$f":"J20/15","v":{"$error":"#N/A"}}]
[]
[null,null,"A = S x P"]
[]
[null,"Minimalny odstęp separacyjny {A}",{"$f":"IFERROR(E23*C28&\" mm\",\"\")","v":""}]
[]
[]
[null,"Informacje dodatkowe:"]
[]
[null,"Specyficzne źródła EMI","minimalny odstęp"]
[null,"lampy fluorescencyjne, neonowe, rtęciowe, wyładowcze","130 mm"]
[null,"spawarki łukowe","800 mm"]
[null,"ogrzewanie indukcyjne częstotliwościowe","1000 mm"]
[]
[null,"Warunkowe złagodzenie wymagań - warunki konieczne do spełnienia - proszę wybrać właściwą odpowiedź"]
[null,"Czy źródłem zakłoceń są specyficzne źródła EMI?","NIE",null,{"$f":"IFERROR(VLOOKUP(C43,Typy_kabli!A84:B85,2,FALSE),\"\")","v":0},{"$f":"IF(E43=0,1,0)","v":1},null,null,null,null,"wybierz opcję"]
[null,"Czy obwody energetyczne są 1f?","NIE",null,{"$f":"IFERROR(VLOOKUP(C44,Typy_kabli!A84:B85,2,FALSE),\"\")","v":0},null,null,null,null,null,"wybierz opcję"]
[null,"Czy całkowity pobór prądu w obwodach 1f wynosi  <32A?","NIE",null,{"$f":"IFERROR(VLOOKUP(C45,Typy_kabli!A84:B85,2,FALSE),\"\")","v":0},null,null,null,null,null,"wybierz opcję"]
[null,"Czy komponenty układu są utrzymywane w bezpośredniej bliskości (np. w obrębie ogólnej osłony lub są wspólnie skręcone albo znajdują się w jednej taśmie lub wiązce)?","NIE",null,{"$f":"IFERROR(VLOOKUP(C46,Typy_kabli!A84:B85,2,FALSE),\"\")","v":0},null,null,null,null,null,"wybierz opcję"]
[null,"Klasyfikacja środowiskowa  okablowania informatycznego jest zgodna z E1 wg normy PN-EN 50173-1?","NIE",null,{"$f":"IFERROR(VLOOKUP(C47,Typy_kabli!A84:B85,2,FALSE),\"\")","v":0},null,null,null,null,null,"wybierz opcję"]
[null,"Kable informatyczne spełniają wymagania klasyfikacji rozdzielania kabli \"b\", c\", lub \"d\"?","NIE",null,{"$f":"IFERROR(VLOOKUP(C48,Typy_kabli!A84:B85,2,FALSE),\"\")","v":0},null,null,null,null,null,"wybierz opcję"]
[]
[null,"to ->",{"$f":"IF(E50,\"warunkowe złagodzenie wymagań spełnione-> nie jest wymagane rozdzielanie okablowania informatycznego od okablowania zasilania energetycznego\",\"warunkowe złagodzenie wymagań nie spełnione -> konieczna separacja okablowania informatycznego od okablowania energetycznego zgodnie z informacjami uzyskanymi powyżej\")","v":"warunkowe złagodzenie wymagań nie spełnione -> konieczna separacja okablowania informatycznego od okablowania energetycznego zgodnie z informacjami uzyskanymi powyżej"},null,{"$f":"IF(AND(F43,E44,E45,E46,E47,E48),1,0)","v":0}]
[]
[]
[null,"Uwagi:"]
[null,"Przewody/kable 3f należy traktować, jak 3 przewody 1f."]
[null,"Przewody o obciążalności większej niż 20A należy traktować, jak wielokrotność obc. prądowej 20A."]
[null,"Opracowano: na podstawie normy PN-EN 50174-2."]

{"sheet":"Dobór_kanałów_A","index":3,"n_rows":43,"n_cols":7,"rows_kept":43,"cut":false,"hidden":false,"merged":[[5,1,5,2],[3,1,3,2]]}
[]
[]
[]
[null,"Dobór wypełnienia kanału EmiterNet PVC"]
[]
[null,"Wyliczenie szacunkowej ilości przewodów/kabli do wybranego wymiaru kanału PCV"]
[]
[null,"Proszę wprowadzić odpowiednie dane","Edytować można tylko ciemnoszare pola"]
[]
[null,"Typ wybranego kanału EmiterNet",null,null,null,null,"wybierz opcję"]
[]
[null,"Typ wybranego przewodu/kabla",null,null,null,null,"wybierz opcję"]
[]
[null,"Zapas wolnej przestrzeni na rozbudowę [%]",0.33,null,null,null,"podaj wartość"]
[null,"(zalecana wartość zapasu wolnej przestrzeni -> 33%)"]
[null,"Szerokość podstawy kanału [mm]",{"$f":"IFERROR(IF(E16<>\"\",E16&\" mm\",\"\"),\"\")","v":""},null,{"$f":"IFERROR(VLOOKUP(C10,Kanały!A3:J52,9,FALSE),\"\")","v":""}]
[null,"Wysokość kanału [mm]",{"$f":"IFERROR(IF(E17<>\"\",E17&\" mm\",\"\"),\"\")","v":""},null,{"$f":"IFERROR(VLOOKUP(C10,Kanały!A3:J52,10,FALSE),\"\")","v":""}]
[null,"Liczba sekcji w kanale (odseparowanych przestrzeni)",{"$f":"IFERROR(E18,\"\")","v":""},null,{"$f":"IFERROR(VLOOKUP(C10,Kanały!A3:J52,8,FALSE),\"\")","v":""}]
[null,"Powierzchnia użyteczna kanału (sumaryczna)",{"$f":"IFERROR(IF(E19<>\"\",E19&\" mm2\",\"\"),\"\")","v":""},null,{"$f":"IFERROR(ROUND(VLOOKUP(C10,Kanały!A3:J52,7,FALSE)/(1+C14),0),\"\")","v":""}]
[null,"Powierzchnia  użyteczna w cz.1",{"$f":"IFERROR(IF(E20<>\"\",E20&\" mm2\",\"\"),\"\")","v":""},null,{"$f":"IFERROR(ROUND(VLOOKUP(C10,Kanały!A3:J52,4,FALSE)/(1+C14),0),\"\")","v":""}]
[null,{"$f":"IF(C18>1,\"Powierzchnia użyteczna w cz.2\",\"\")","v":"Powierzchnia użyteczna w cz.2"},{"$f":"IFERROR(IF(C18>1,IF(E21<>\"\",E21&\" mm2\",\"\"),\"\"),\"\")","v":""},null,{"$f":"IFERROR(IF(C18>1,ROUND(VLOOKUP(C10,Kanały!A3:J52,5,FALSE)/(1+C14),0),\"\"),\"\")","v":""}]
[null,{"$f":"IF(C18>2,\"Powierzchnia użyteczna w cz.3\",\"\")","v":"Powierzchnia użyteczna w cz.3"},{"$f":"IFERROR(IF(C19>2,IF(E22<>\"\",E22&\" mm2\",\"\"),\"\"),\"\")","v":""},null,{"$f":"IFERROR(IF(C18>2,ROUND(VLOOKUP(C10,Kanały!A3:J52,6,FALSE)/(1+C14),0),\"\"),\"\")","v":""}]
[]
[null,"Średnica wybranego przewodu/kabla",{"$f":"IFERROR(IF(E24<>\"\",E24&\" mm\",\"\"),\"\")","v":""},null,{"$f":"IFERROR(VLOOKUP(C12,Kable_sygnałowe!B3:D77,2,FALSE),\"\")","v":""}]
[null,"Przekrój użyteczny przewodu/kabla",{"$f":"IFERROR(IF(E25<>\"\",E25&\" mm2\",\"\"),\"\")","v":""},null,{"$f":"IFERROR(VLOOKUP(C12,Kable_sygnałowe!B3:D77,3,FALSE),\"\")","v":""}]
[null,{"$f":"IF(E26<>\"\",\"Minimalny promień gięcia podczas układania\",\"Zalecany minimalny promień gięcia\")","v":"Zalecany minimalny promień gięcia"},{"$f":"IFERROR(IF(E26<>\"\",E26&\" mm\",F26&\" mm\"),\"\")","v":""},null,{"$f":"IFERROR(VLOOKUP(C12,Typy_kabli!A3:I16,8,FALSE),\"\")","v":""},{"$f":"IF(E26=\"\",E24*8,\"\")","v":{"$error":"#VALUE!"}}]
[null,{"$f":"IF(E27<>\"\",\"Minimalny promień gięcia podczas eksploatacji\",\"\")","v":""},{"$f":"IF(E27<>\"\",E27&\" mm\",\"\")","v":""},null,{"$f":"IFERROR(VLOOKUP(C12,Typy_kabli!A3:I16,9,FALSE),\"\")","v":""}]
[]
[]
[null,"Liczba przewodów/kabli w kanale - suma",{"$f":"IFERROR(IF(E30<>0,E30,\"\"),\"\")","v":""},null,{"$f":"E31+E32+E33","v":0}]
[null,"Liczba przewodów w cz.1 kanału",{"$f":"IFERROR(ROUNDDOWN(E20/E25,0),\"\")","v":""},null,{"$f":"IFERROR(ROUNDDOWN(E20/E25,0),0)","v":0}]
[null,{"$f":"IF(C18>1,\"Liczba przewodów w cz.2 kanału\",\"\")","v":"Liczba przewodów w cz.2 kanału"},{"$f":"IFERROR(ROUNDDOWN(E21/E25,0),\"\")","v":""},null,{"$f":"IFERROR(ROUNDDOWN(E21/E25,0),0)","v":0}]
[null,{"$f":"IF(C18>2,\"Liczba przewodów w cz.3 kanału\",\"\")","v":"Liczba przewodów w cz.3 kanału"},{"$f":"IFERROR(ROUNDDOWN(E22/E25,0),\"\")","v":""},null,{"$f":"IFERROR(ROUNDDOWN(E22/E25,0),0)","v":0}]
[]
[]
[null,"Uwagi"]
[null,"Maksymalna dopuszczalna wysokość stosu kabli wynosi 150mm."]
[null,"Średnice kabli poszczególnych producentów mogą się różnić od przyjętych typowych średnic."]
[null,"Zalecane promienie gięcia kabli typowych podane tylko informacyjnie - należy uwzględnić dane konkretnego producenta, "]
[null,"które mogą być większe od podanych."]
[null,"Podana powierzchnia użyteczna kanału uwzględnia zakładany zapas."]
[null,"Uzyskane wyliczenia mają charakter orientacyjny, szacunkowy."]
[null,"Opracowano: na podstawie normy PN-EN 50174-2"]

{"sheet":"Dobór_kanałów_B","index":4,"n_rows":38,"n_cols":14,"rows_kept":38,"cut":false,"hidden":false,"merged":[[3,1,3,2],[5,1,5,2]]}
[]
[]
[]
[null,"Dobór kanału EmiterNet PVC"]
[]
[null,"Dobór rozmiaru kanału PCV do układanej zakładanej liczby przewodów"]
[]
[null,"Proszę wprowadzić odpowiednie dane","Edytować można tylko ciemnoszare pola"]
[]
[null,"Typ układanego przewodu/kabla",null,null,null,null,null,null,null,null,null,null,null,"wybierz opcję"]
[]
[null,"Ilość przewodów/kabli",null,null,null,null,null,null,null,null,null,null,null,"podaj wartość"]
[]
[null,"Ilość sekcji w kanale (odseparowanych przestrzeni)",null,null,null,null,null,null,null,null,null,null,null,"wybierz opcję"]
[]
[null,"Zapas wolnej przestrzeni na rozbudowę",0.33,null,null,null,null,null,null,null,null,null,null,"podaj wartość"]
[null,"(zalecana wartość zapasu wolnej przestrzeni -> 33%)"]
[null,"Średnica wybranego przewodu/kabla",{"$f":"IFERROR(IF(E18<>\"\",E18&\" mm\",\"\"),\"\")","v":""},null,{"$f":"IFERROR(VLOOKUP(C10,Kable_sygnałowe!B3:D77,2,FALSE),\"\")","v":""}]
[null,"Przekrój użyteczny przewodu/kabla",{"$f":"IFERROR(IF(E19<>\"\",E19&\" mm2\",\"\"),\"\")","v":""},null,{"$f":"IFERROR(VLOOKUP(C10,Kable_sygnałowe!B3:D77,3,FALSE),\"\")","v":""}]
[null,{"$f":"IF(E20<>\"\",\"Minimalny promień gięcia podczas układania\",\"Zalecany minimalny promień gięcia\")","v":"Zalecany minimalny promień gięcia"},{"$f":"IFERROR(IF(E20<>\"\",E20&\" mm\",F20&\" mm\"),\"\")","v":""},null,{"$f":"IFERROR(VLOOKUP(C10,Typy_kabli!A3:I16,8,FALSE),\"\")","v":""},{"$f":"IF(E20=\"\",E18*8,\"\")","v":{"$error":"#VALUE!"}}]
[null,{"$f":"IF(E21<>\"\",\"Minimalny promień gięcia podczas eksploatacji\",\"\")","v":""},{"$f":"IF(E21<>\"\",E21&\" mm\",\"\")","v":""},null,{"$f":"IFERROR(VLOOKUP(C10,Typy_kabli!A3:I16,9,FALSE),\"\")","v":""}]
[]
[null,"Wymagany przekrój użyteczny kanału",{"$f":"IFERROR(E23&\" mm2\",\"\")","v":""},null,{"$f":"C12*E19*(1+C16)","v":{"$error":"#VALUE!"}},null,{"$f":"IFERROR(VLOOKUP(M25,Kanały!A55:B104,2,FALSE),\"\")","v":""}]
[]
[null,"Przykład doboru kanału - wg sumy przekroju użytecznego",{"$f":"IFERROR(IF(C14=1,VLOOKUP(M25,Kanały!A218:B241,2,FALSE),IF(C14=2,VLOOKUP(M26,Kanały!A245:B272,2,FALSE),VLOOKUP(M27,Kanały!A276:B304,2,FALSE))),\"\")","v":""},null,null,{"$f":"IFERROR(VLOOKUP(E23,Kanały!A218:A241,1,TRUE),\"\")","v":""},{"$f":"IF(E23>F25,1,0)","v":{"$error":"#VALUE!"}},{"$f":"INDEX(Kanały!A218:A241,MATCH(F25,Kanały!A218:A241,0)+G25,1)","v":{"$error":"#N/A"}},{"$f":"INDEX(Kanały!A218:A241,MATCH(F25,Kanały!A218:A241,0)+G25+1,1)","v":{"$error":"#N/A"}},{"$f":"INDEX(Kanały!A218:A241,MATCH(F25,Kanały!A218:A241,0)+G25+2,1)","v":{"$error":"#N/A"}},{"$f":"INDEX(Kanały!A218:A241,MATCH(F25,Kanały!A218:A241,0)+G25+3,1)","v":{"$error":"#N/A"}},{"$f":"IFERROR(VLOOKUP(C25,Kanały!A3:J52,8,FALSE),\"\")","v":""},{"$f":"IF(E23<=H25,H25,IF(E23<=I25,I25,IF(E23<=J25,J25,K25)))","v":{"$error":"#VALUE!"}}]
[null,"Przekrój użyteczny kanału (sumaryczny)",{"$f":"IFERROR(IF(E26<>\"\",E26&\" mm2\",\"\"),\"\")","v":""},null,{"$f":"IFERROR(ROUND(VLOOKUP(C25,Kanały!A3:J52,7,FALSE),0),\"\")","v":""},{"$f":"IFERROR(VLOOKUP(E23,Kanały!A245:A272,1,TRUE),\"\")","v":""},{"$f":"IF(E23>F25,1,0)","v":{"$error":"#VALUE!"}},{"$f":"INDEX(Kanały!A245:A272,MATCH(F26,Kanały!A245:A272,0)+G25,1)","v":{"$error":"#N/A"}},{"$f":"INDEX(Kanały!A218:A241,MATCH(F25,Kanały!A218:A241,0)+G25+1,1)","v":{"$error":"#N/A"}},{"$f":"INDEX(Kanały!A218:A241,MATCH(F25,Kanały!A218:A241,0)+G25+2,1)","v":{"$error":"#N/A"}},{"$f":"INDEX(Kanały!A218:A241,MATCH(F25,Kanały!A218:A241,0)+G25+3,1)","v":{"$error":"#N/A"}},{"$f":"IFERROR(VLOOKUP(C26,Kanały!A4:J53,8,FALSE),\"\")","v":""},{"$f":"IF(E23<=H26,H26,IF(E23<=I26,I26,IF(E23<=J26,J26,K26)))","v":{"$error":"#VALUE!"}}]
[null,"Przekrój użyteczny w cz.1",{"$f":"IFERROR(IF(E27<>\"\",E27&\" mm2\",\"\"),\"\")","v":""},null,{"$f":"IFERROR(ROUND(VLOOKUP(C25,Kanały!A3:J52,4,FALSE),0),\"\")","v":""},{"$f":"IFERROR(VLOOKUP(E23,Kanały!A276:A304,1,TRUE),\"\")","v":""},{"$f":"IF(E23>F25,1,0)","v":{"$error":"#VALUE!"}},{"$f":"INDEX(Kanały!A276:A304,MATCH(F27,Kanały!A276:A304,0)+G25,1)","v":{"$error":"#N/A"}},{"$f":"INDEX(Kanały!A276:A304,MATCH(F27,Kanały!A276:A304,0)+G25+1,1)","v":{"$error":"#N/A"}},{"$f":"INDEX(Kanały!A276:A304,MATCH(F27,Kanały!A276:A304,0)+G25+2,1)","v":{"$error":"#N/A"}},{"$f":"INDEX(Kanały!A276:A304,MATCH(F27,Kanały!A276:A304,0)+G25+3,1)","v":{"$error":"#N/A"}},{"$f":"IFERROR(VLOOKUP(C27,Kanały!A5:J54,8,FALSE),\"\")","v":""},{"$f":"IF(E23<=H27,H27,IF(E24<=I27,I27,IF(E24<=J27,J27,K27)))","v":{"$error":"#VALUE!"}}]
[null,{"$f":"IF(L25>1,\"Przekrój użyteczny w cz.2\",\"\")","v":"Przekrój użyteczny w cz.2"},{"$f":"IFERROR(IF(L25>1,IF(E28<>\"\",E28&\" mm2\",\"\"),\"\"),\"\")","v":""},null,{"$f":"IFERROR(IF(L25>1,ROUND(VLOOKUP(C25,Kanały!A3:J52,5,FALSE),0),\"\"),\"\")","v":""}]
[null,{"$f":"IF(L25>2,\"Przekrój użyteczny w cz.3\",\"\")","v":"Przekrój użyteczny w cz.3"},{"$f":"IFERROR(IF(L25>2,IF(E29<>\"\",E29&\" mm2\",\"\"),\"\"),\"\")","v":""},null,{"$f":"IFERROR(IF(L25>2,ROUND(VLOOKUP(C25,Kanały!A3:J52,6,FALSE)/(1+C16),0),\"\"),\"\")","v":""}]
[]
[null,"Uwagi"]
[null,"Maksymalna dopuszczalna wysokość stosu kabli wynosi 150mm."]
[null,"Średnice kabli poszczególnych producentów mogą się różnić od przyjętych typowych średnic."]
[null,"Zalecane promienie gięcia kabli typowych podane tylko informacyjnie - należy uwzględnić dane konkretnego producenta, "]
[null,"które mogą być większe od podanych."]
[null,"Podana powierzchnia użyteczna kanału uwzględnia zakładany zapas."]
[null,"Uzyskane wyliczenia mają charakter orientacyjny, szacunkowy."]
[null,"Opracowano: na podstawie normy PN-EN 50174-2"]

{"sheet":"Dobór_kanałów_C","index":5,"n_rows":44,"n_cols":14,"rows_kept":44,"cut":false,"hidden":false,"merged":[[5,1,5,2],[3,1,3,2]]}
[]
[]
[]
[null,"Dobór kanału EmiterNet PVC"]
[]
[null,"Dobór rozmiaru kanału PCV do układanej zakładanej liczby przewodów"]
[]
[null,"Proszę wprowadzić odpowiednie dane","Edytować można tylko ciemnoszare pola"]
[]
[null,"Typ układanego przewodu/kabla",null,null,null,null,null,null,null,null,null,null,null,"wybierz opcję"]
[]
[null,"Ilość przewodów/kabli",null,null,null,null,null,null,null,null,null,null,null,"podaj wartość"]
[]
[null,"Zapas wolnej przestrzeni na rozbudowę",0.33,null,null,null,null,null,null,null,null,null,null,"podaj wartość"]
[null,"(zalecana wartość zapasu wolnej przestrzeni -> 33%)"]
[null,"Średnica wybranego przewodu/kabla",{"$f":"IFERROR(IF(E16<>\"\",E16&\" mm\",\"\"),\"\")","v":""},null,{"$f":"IFERROR(VLOOKUP(C10,Kable_sygnałowe!B3:D77,2,FALSE),\"\")","v":""}]
[null,"Przekrój użyteczny przewodu/kabla",{"$f":"IFERROR(IF(E17<>\"\",E17&\" mm2\",\"\"),\"\")","v":""},null,{"$f":"IFERROR(VLOOKUP(C10,Kable_sygnałowe!B3:D77,3,FALSE),\"\")","v":""}]
[null,{"$f":"IF(E18<>\"\",\"Minimalny promień gięcia podczas układania\",\"Zalecany minimalny promień gięcia\")","v":"Zalecany minimalny promień gięcia"},{"$f":"IFERROR(IF(E18<>\"\",E18&\" mm\",F18&\" mm\"),\"\")","v":""},null,{"$f":"IFERROR(VLOOKUP(C10,Typy_kabli!A3:I16,8,FALSE),\"\")","v":""},{"$f":"IF(E18=\"\",E16*8,\"\")","v":{"$error":"#VALUE!"}}]
[null,{"$f":"IF(E19<>\"\",\"Minimalny promień gięcia podczas eksploatacji\",\"\")","v":""},{"$f":"IF(E19<>\"\",E19&\" mm\",\"\")","v":""},null,{"$f":"IFERROR(VLOOKUP(C10,Typy_kabli!A3:I16,9,FALSE),\"\")","v":""}]
[]
[null,"Wymagany przekrój użyteczny kanału",{"$f":"IFERROR(E21&\" mm2\",\"\")","v":""},null,{"$f":"C12*E17*(1+C14)","v":{"$error":"#VALUE!"}}]
[]
[null,"Przykład doboru kanału - wg sumy przekroju użytecznego",{"$f":"IFERROR(VLOOKUP(L23,Kanały!A55:B104,2,FALSE),\"\")","v":""},null,{"$f":"IFERROR(VLOOKUP(E21,Kanały!A55:A104,1,TRUE),\"\")","v":""},{"$f":"IF(E21>E23,1,0)","v":{"$error":"#VALUE!"}},{"$f":"INDEX(Kanały!A55:A104,MATCH(E23,Kanały!A55:A104,0)+F23,1)","v":{"$error":"#N/A"}},{"$f":"INDEX(Kanały!A55:A104,MATCH(E23,Kanały!A55:A104,0)+F23+1,1)","v":{"$error":"#N/A"}},{"$f":"INDEX(Kanały!A55:A104,MATCH(E23,Kanały!A55:A104,0)+F23+2,1)","v":{"$error":"#N/A"}},{"$f":"INDEX(Kanały!A55:A104,MATCH(E23,Kanały!A55:A104,0)+F23+3,1)","v":{"$error":"#N/A"}},{"$f":"IFERROR(VLOOKUP(C23,Kanały!A3:J52,8,FALSE),\"\")","v":""},{"$f":"IF(E21<=G23,G23,IF(E21<=H23,H23,IF(E21<=I23,I23,J23)))","v":{"$error":"#VALUE!"}}]
[null,"Przekrój użyteczny kanału (sumaryczny)",{"$f":"IFERROR(IF(E24<>\"\",E24&\" mm2\",\"\"),\"\")","v":""},null,{"$f":"IFERROR(ROUND(VLOOKUP(C23,Kanały!A3:J52,7,FALSE),0),\"\")","v":""}]
[null,"Przekrój użyteczny w cz.1",{"$f":"IFERROR(IF(E25<>\"\",E25&\" mm2\",\"\"),\"\")","v":""},null,{"$f":"IFERROR(ROUND(VLOOKUP(C23,Kanały!A3:J52,4,FALSE),0),\"\")","v":""}]
[null,{"$f":"IF(K23>1,\"Przekrój użyteczny w cz.2\",\"\")","v":"Przekrój użyteczny w cz.2"},{"$f":"IFERROR(IF(K23>1,IF(E26<>\"\",E26&\" mm2\",\"\"),\"\"),\"\")","v":""},null,{"$f":"IFERROR(IF(K23>1,ROUND(VLOOKUP(C23,Kanały!A3:J52,5,FALSE),0),\"\"),\"\")","v":""}]
[null,{"$f":"IF(K23>2,\"Przekrój użyteczny w cz.3\",\"\")","v":"Przekrój użyteczny w cz.3"},{"$f":"IFERROR(IF(K23>2,IF(E27<>\"\",E27&\" mm2\",\"\"),\"\"),\"\")","v":""},null,{"$f":"IFERROR(IF(K23>2,ROUND(VLOOKUP(C23,Kanały!A3:J52,6,FALSE)/(1+C14),0),\"\"),\"\")","v":""}]
[]
[null,"Przykład doboru kanału - wg przekroju największej sekcji",{"$f":"IFERROR(VLOOKUP(L29,Kanały!A108:B157,2,FALSE),\"\")","v":""},null,{"$f":"IFERROR(VLOOKUP(E21,Kanały!A108:A157,1,TRUE),\"\")","v":""},{"$f":"IF(E21>E29,1,0)","v":{"$error":"#VALUE!"}},{"$f":"INDEX(Kanały!A108:A157,MATCH(E29,Kanały!A108:A157,0)+F29,1)","v":{"$error":"#N/A"}},{"$f":"INDEX(Kanały!A108:A157,MATCH(E29,Kanały!A108:A157,0)+F29+1,1)","v":{"$error":"#N/A"}},{"$f":"INDEX(Kanały!A108:A157,MATCH(E29,Kanały!A108:A157,0)+F29+2,1)","v":{"$error":"#N/A"}},{"$f":"INDEX(Kanały!A108:A157,MATCH(E29,Kanały!A108:A157,0)+F29+3,1)","v":{"$error":"#N/A"}},{"$f":"IFERROR(VLOOKUP(C29,Kanały!A3:J52,8,FALSE),\"\")","v":""},{"$f":"IF(E21<=G29,G29,IF(E21<=H29,H29,IF(E21<=I29,I29,J29)))","v":{"$error":"#VALUE!"}}]
[null,"Przekrój użyteczny największej sekcji ",{"$f":"IFERROR(IF(E30<>\"\",E30&\" mm2\",\"\"),\"\")","v":""},null,{"$f":"IFERROR(ROUND(VLOOKUP(C29,Kanały!A3:L52,11,FALSE),0),\"\")","v":""}]
[null,"Liczba sekcji/części w kanale",{"$f":"K29","v":""}]
[]
[null,"Przykład doboru kanału - wg przekroju najmniejszej sekcji",{"$f":"IFERROR(VLOOKUP(M33,Kanały!A160:B209,2,FALSE),\"\")","v":""},null,{"$f":"IFERROR(VLOOKUP(E21,Kanały!A160:A209,1,TRUE),\"\")","v":""},{"$f":"IF(E21>E33,1,0)","v":{"$error":"#VALUE!"}},{"$f":"INDEX(Kanały!A160:A209,MATCH(E33,Kanały!A160:A209,0)+F33,1)","v":{"$error":"#N/A"}},{"$f":"INDEX(Kanały!A160:A209,MATCH(E33,Kanały!A160:A209,0)+F33+1,1)","v":{"$error":"#N/A"}},{"$f":"INDEX(Kanały!A160:A209,MATCH(E33,Kanały!A160:A209,0)+F33+2,1)","v":{"$error":"#N/A"}},{"$f":"INDEX(Kanały!A160:A209,MATCH(E33,Kanały!A160:A209,0)+F33+3,1)","v":{"$error":"#N/A"}},{"$f":"INDEX(Kanały!A160:A209,MATCH(E33,Kanały!A160:A209,0)+F33+4,1)","v":{"$error":"#N/A"}},{"$f":"IFERROR(VLOOKUP(C33,Kanały!A3:J52,8,FALSE),\"\")","v":""},{"$f":"IF(E21<=G33,G33,IF(E21<=H33,H33,IF(E21<=I33,I33,IF(E21<=J33,J33,K33))))","v":{"$error":"#VALUE!"}}]
[null,"Przekrój użyteczny najmniejszej sekcji ",{"$f":"IFERROR(IF(E30<>\"\",E34&\" mm2\",\"\"),\"\")","v":""},null,{"$f":"IFERROR(ROUND(VLOOKUP(C33,Kanały!A3:L52,12,FALSE),0),\"\")","v":""}]
[null,"Liczba sekcji/części w kanale",{"$f":"L33","v":""}]
[]
[null,"Uwagi"]
[null,"Maksymalna dopuszczalna wysokość stosu kabli wynosi 150mm."]
[null,"Średnice kabli poszczególnych producentów mogą się różnić od przyjętych typowych średnic."]
[null,"Zalecane promienie gięcia kabli typowych podane tylko informacyjnie - należy uwzględnić dane konkretnego producenta, "]
[null,"które mogą być większe od podanych."]
[null,"Podana powierzchnia użyteczna kanału uwzględnia zakładany zapas."]
[null,"Uzyskane wyliczenia mają charakter orientacyjny, szacunkowy."]
[null,"Opracowano: na podstawie normy PN-EN 50174-2"]

{"sheet":"Dobór_kanałów_siatkowych","index":6,"n_rows":38,"n_cols":7,"rows_kept":38,"cut":false,"hidden":false,"merged":[[5,1,5,2],[3,1,3,2]]}
[]
[]
[]
[null,"Dobór wypełnienia kanałów siatkowych/drabinkowych"]
[]
[null,"Wyliczenie szacunkowej ilości przewodów do wybranego wymiaru kanału siatkowego/drabinkowego"]
[]
[null,"Proszę wprowadzić odpowiednie dane","Edytować można tylko ciemnoszare pola"]
[]
[null,"Wymiar kanału siatkowego/drabinkowego - szerokość podstawy [mm]",null,null,null,null,"podaj wartość"]
[null,"Wymiar kanału siatkowego/drabinkowego - wysokość [mm]",null,null,null,null,"podaj wartość"]
[null,"(w przypadku drabinki podajemy planowaną wysokość kabli w stosie)"]
[null,"Odstęp pomiędzy prętami [mm]",null,null,null,null,"podaj wartość"]
[]
[null,"Typ wybranego przewodu",null,null,null,null,"wybierz opcję"]
[]
[null,"Zapas wolnej przestrzeni na rozbudowę [%]",0.33,null,null,null,"podaj wartość"]
[null,"(zalecana wartość zapasu wolnej przestrzeni -> 33%)"]
[]
[null,"Maksymalna dopuszczalna wysokość stosu kabli",{"$f":"IFERROR(IF(C13<>\"\",E20&\" mm\",\"\"),\"\")","v":""},null,{"$f":"ROUNDDOWN(150/(1+C13*0.0007),1)","v":150}]
[null,"Powierzchnia przekroju kanału",{"$f":"IFERROR(IF(E21<>0,E21&\" mm2\",\"\"),\"\")","v":""},null,{"$f":"C10*C11","v":0}]
[null,"Dopuszczalna powierzchnia przekroju  kanału",{"$f":"IFERROR(IF(E22<>0,E22&\" mm2\",\"\"),\"\")","v":""},null,{"$f":"ROUND(IF(C11<E20,C10*C11,C10*E20),0)","v":0}]
[null,"Powierzchnia użyteczna kanału",{"$f":"IFERROR(IF(E23<>0,E23&\" mm2\",\"\"),\"\")","v":""},null,{"$f":"ROUND(E22/(1+C17),0)","v":0}]
[]
[null,"Średnica wybranego przedwodu/kabla",{"$f":"IFERROR(IF(E25<>\"\",E25&\" mm\",\"\"),\"\")","v":""},null,{"$f":"IFERROR(VLOOKUP(C15,Kable_sygnałowe!B3:D77,2,FALSE),\"\")","v":""}]
[null,"Przekrój użyteczny przewodu/kabla",{"$f":"IFERROR(IF(E26<>\"\",E26&\" mm2\",\"\"),\"\")","v":""},null,{"$f":"IFERROR(VLOOKUP(C15,Kable_sygnałowe!B3:D77,3,FALSE),\"\")","v":""}]
[null,{"$f":"IF(E27<>\"\",\"Minimalny promień gięcia podczas układania\",\"Zalecany minimalny promień gięcia\")","v":"Zalecany minimalny promień gięcia"},{"$f":"IFERROR(IF(E27<>\"\",E27&\" mm\",F27&\" mm\"),\"\")","v":""},null,{"$f":"IFERROR(VLOOKUP(C15,Typy_kabli!A3:I16,8,FALSE),\"\")","v":""},{"$f":"IF(E27=\"\",E25*8,\"\")","v":{"$error":"#VALUE!"}}]
[null,{"$f":"IF(E28<>\"\",\"Minimalny promień gięcia podczas eksploatacji\",\"\")","v":""},{"$f":"IF(E28<>\"\",E28&\" mm\",\"\")","v":""},null,{"$f":"IFERROR(VLOOKUP(C15,Typy_kabli!A3:I16,9,FALSE),\"\")","v":""}]
[]
[]
[null,"Liczba przewodów/kabli w kanale siatkowym/drabinkowym",{"$f":"IFERROR(E31,\"\")","v":""},null,{"$f":"ROUNDDOWN((E23*0.6)/E26,0)","v":{"$error":"#VALUE!"}}]
[]
[null,"Uwagi:"]
[null,"Maksymalna dopuszczalna wysokość stosu kabli wynosi 150mm."]
[null,"Maksymalna dopuszczalna odległosć pomiędzy elementami podtrzymującymi przewody/kable wynosi 1500mm."]
[null,"Podana powierzchnia użyteczna kanału uwzględnia zakładany zapas."]
[null,"Uzyskane wyliczenia mają charakter orientacyjny, szacunkowy."]
[null,"Opracowano: na podstawie normy PN-EN 50174-2"]

{"sheet":"Dobór_rur","index":7,"n_rows":31,"n_cols":7,"rows_kept":31,"cut":false,"hidden":false,"merged":[[3,1,3,2],[5,1,5,2]]}
[]
[]
[]
[null,"Dobór rur instalacyjnych"]
[]
[null,"Dobór średnicy rury PCV do wybranej liczby wciąganych przewodów"]
[]
[null,"Proszę wprowadzić odpowiednie dane","Edytować można tylko ciemnoszare pola"]
[]
[null,"Typ układanego przewodu/kabla",null,null,null,null,"wybierz opcję"]
[]
[null,"Liczba przewodów/kabli",null,null,null,null,"podaj wartość"]
[]
[null,"Możliwość rozbudowy - zapas liczby kabli [szt]",null,null,null,null,"podaj wartość w szt."]
[null,"(zalecana wartość zapasu wolnej przestrzeni -> 33% -> proszę wprowadzić ilościowo, nie procentowo)"]
[]
[null,"Średnica wybranego przewodu/kabla",{"$f":"IFERROR(IF(E17<>\"\",E17&\" mm\",\"\"),\"\")","v":""},null,{"$f":"IFERROR(VLOOKUP(C10,Kable_sygnałowe!B3:D77,2,FALSE),\"\")","v":""}]
[null,"Przekrój użyteczny przewodu/kabla",{"$f":"IFERROR(IF(E18<>\"\",E18&\" mm2\",\"\"),\"\")","v":""},null,{"$f":"IFERROR(VLOOKUP(C10,Kable_sygnałowe!B3:D77,3,FALSE),\"\")","v":""}]
[null,{"$f":"IF(E19<>\"\",\"Minimalny promień gięcia podczas układania\",\"Zalecany minimalny promień gięcia\")","v":"Zalecany minimalny promień gięcia"},{"$f":"IFERROR(IF(E19<>\"\",E19&\" mm\",F19&\" mm\"),\"\")","v":""},null,{"$f":"IFERROR(VLOOKUP(C10,Typy_kabli!A3:I16,8,FALSE),\"\")","v":""},{"$f":"IF(E19=\"\",E17*8,\"\")","v":{"$error":"#VALUE!"}}]
[null,{"$f":"IF(E20<>\"\",\"Minimalny promień gięcia podczas eksploatacji\",\"\")","v":""},{"$f":"IF(E20<>\"\",E20&\" mm\",\"\")","v":""},null,{"$f":"IFERROR(VLOOKUP(C10,Typy_kabli!A3:I16,9,FALSE),\"\")","v":""}]
[]
[null,"Wymagany min.przekrój użyteczny rury",{"$f":"IFERROR(E22&\" mm2\",\"\")","v":""},null,{"$f":"ROUND((C12+C14)*E18*10/6,0)","v":{"$error":"#VALUE!"}}]
[]
[null,"Zalecana średnica wewn.rury (minimalna)",{"$f":"IFERROR(E24&\" mm\",\"\")","v":""},null,{"$f":"ROUND(SQRT(E22)*SQRT(2),0)","v":{"$error":"#VALUE!"}}]
[]
[null,"Uwagi:"]
[null,"Zapas liczby kabli należy wprowadzić w szt. (nie w %)."]
[null,"Zalecane, aby w rurach pozostawić \"piloty\", umożliwiające modernizację okablowania, oraz przewidzieć niezbędne rewizje."]
[null,"Przyjmuje się, że przewody/kable prowadzone są wzdłuż linii prostej, bez zakrętów i zagięć."]
[null,"Wewnętrzny promień zagięcia w rurze powinien być co najmniej 6-krotnie większy niż średnica wewn. rury."]
[null,"Uzyskane wyliczenia mają charakter orientacyjny, szacunkowy."]

{"sheet":"Schemat_szafy","index":8,"n_rows":69,"n_cols":13,"rows_kept":69,"cut":false,"hidden":false,"merged":[[3,1,3,4]]}
[]
[]
[]
[null,"Schemat elewacji szafy"]
[]
[null,"Uproszczony sposób przygotowania schematu elewacji szafy"]
[]
[null,"Proszę wprowadzić odpowiednie dane",null,null,"Edytować można tylko ciemnoszare pola"]
[]
[null,"Proszę wybrać model szafy",null,null,"EM/AS6412X",null,null,null,"wybierz opcję"]
[null,"Nazwa",null,null,{"$f":"IFERROR(IF(E10<>\"\",VLOOKUP(E10,Szafy!A2:G54,2,FALSE),\"\"),\"\")","v":"Szafa wisząca niedzielona 19'' 12U gł.450mm, niezmontowana, RAL 7035"}]
[null,"Typ szafy",null,null,{"$f":"IFERROR(IF(E10<>\"\",VLOOKUP(E10,Szafy!A2:G54,3,FALSE),\"\"),\"\")","v":"wisząca"}]
[null,"Wymiary:"]
[null,"wysokość",null,null,{"$f":"IFERROR(IF(L14<>\"\",L14&\"U\",\"\"),\"\")","v":"12U"},null,null,null,null,null,null,{"$f":"IFERROR(IF(E10<>\"\",VLOOKUP(E10,Szafy!A2:G54,4,FALSE),\"\"),\"\")","v":12}]
[null,"szerokość",null,null,{"$f":"IFERROR(IF(L15<>\"\",L15&\" mm\",\"\"),\"\")","v":"600 mm"},null,null,null,null,null,null,{"$f":"IFERROR(IF(E10<>\"\",VLOOKUP(E10,Szafy!A2:G54,5,FALSE),\"\"),\"\")","v":600}]
[null,"głębokość",null,null,{"$f":"IFERROR(IF(L16<>\"\",L16&\" mm\",\"\"),\"\")","v":"450 mm"},null,null,null,null,null,null,{"$f":"IFERROR(IF(E10<>\"\",VLOOKUP(E10,Szafy!A2:G54,6,FALSE),\"\"),\"\")","v":450}]
[]
[null,null,null,null,"poniżej znajduje się obszar druku schematu szafy"]
[]
[null,null,"rys.",null,"Schemat elewacji szafy",null,null,null,null,null,"                     wprowadź numer rysunku"]
[]
[null,null,null,null,{"$f":"IFERROR(IF(E12<>\"\",\"szafa EmiterNet \"&E12,\"\"),\"\")","v":"szafa EmiterNet wisząca"}]
[null,null,null,null,{"$f":"IFERROR(IF(E10<>\"\",VLOOKUP(E10,Szafy!A2:G54,7,FALSE),\"\"),\"\")","v":" 12U 600 x 450 [mm]"},null,null,null,"pola opisowe"]
[]
[null,"Aby działał ten przycisk, musi być",null,{"$f":"IFERROR(IF(H25<>\"\",\"[\",\"\"),\"\")","v":"["},"1U panel 19\" 24xRJ45 STP kat. 6A",{"$f":"IFERROR(IF(H25<>\"\",\"]\",\"\"),\"\")","v":"]"},null,{"$f":"IFERROR(IF(M25<>\"\",M25&\"U\",\"\"),\"\")","v":"12U"},null,null,"w polu pomiedzy nawiasami kwadratowymi wybierz odpowiednią opcję",1,{"$f":"IFERROR(L14,\"\")","v":12}]
[null,"włączona opcja uruchamiania makr.",null,{"$f":"IFERROR(IF(H26<>\"\",\"[\",\"\"),\"\")","v":"["},"1U 19\" uchwyt kablowy z uszami",{"$f":"IFERROR(IF(H26<>\"\",\"]\",\"\"),\"\")","v":"]"},null,{"$f":"IFERROR(IF(M26<>\"\",M26&\"U\",\"\"),\"\")","v":"11U"},null,null,"wybierz opcje we właściwych dla swojej konfiguracji polach/miejscach szafy",2,{"$f":"IFERROR(IF(M25-1>0,M25-1,\"\"),\"\")","v":11}]
[null,null,null,"[","1U przełącznik 24x10/100/1000","]",null,"10U",null,null,"uzupełnij pola opisowe po prawej stronie wg potrzeb",3,{"$f":"IFERROR(IF(M26-1>0,M26-1,\"\"),\"\")","v":10}]
[null,null,null,"[","1U 19\" uchwyt kablowy z uszami","]",null,"9U",null,null,"aby usunąć jakąś wartość (puste pole) użyj klawisza DEL",4,9]
[null,null,null,"[",null,"]",null,"8U",null,null,null,5,8]
[null,null,null,"[",null,"]",null,"7U",null,null,null,6,7]
[null,null,null,"[",null,"]",null,"6U",null,null,null,7,6]
[null,null,null,"[",null,"]",null,"5U",null,null,null,8,5]
[null,null,null,"[",null,"]",null,"4U",null,null,null,9,4]
[null,null,null,"[",null,"]",null,"3U",null,null,null,10,3]
[null,null,null,"[","1U 19\" panel zasilajacy 8x230V","]",null,"2U",null,null,null,11,2]
[null,null,null,"[",null,"]",null,"1U",null,null,null,12,1]
[null,null,null,"",null,"",null,"",null,null,null,13,""]
[null,null,null,"",null,"",null,"",null,null,null,14,""]
[null,null,null,"",null,"",null,"",null,null,null,15,""]
[null,null,null,"",null,"",null,"",null,null,null,16,""]
[null,null,null,"",null,"",null,"",null,null,null,17,""]
[null,null,null,"",null,"",null,"",null,null,null,18,""]
[null,null,null,"",null,"",null,"",null,null,null,19,""]
[null,null,null,"",null,"",null,"",null,null,null,20,""]
[null,null,null,"",null,"",null,"",null,null,null,21,""]
[null,null,null,"",null,"",null,"",null,null,null,22,""]
[null,null,null,"",null,"",null,"",null,null,null,23,""]
[null,null,null,"",null,"",null,"",null,null,null,24,""]
[null,null,null,"",null,"",null,"",null,null,null,25,""]
[null,null,null,"",null,"",null,"",null,null,null,26,""]
[null,null,null,"",null,"",null,"",null,null,null,27,""]
[null,null,null,"",null,"",null,"",null,null,null,28,""]
[null,null,null,"",null,"",null,"",null,null,null,29,""]
[null,null,null,"",null,"",null,"",null,null,null,30,""]
[null,null,null,"",null,"",null,"",null,null,null,31,""]
[null,null,null,"",null,"",null,"",null,null,null,32,""]
[null,null,null,"",null,"",null,"",null,null,null,33,""]
[null,null,null,"",null,"",null,"",null,null,null,34,""]
[null,null,null,"",null,"",null,"",null,null,null,35,""]
[null,null,null,"",null,"",null,"",null,null,null,36,""]
[null,null,null,"",null,"",null,"",null,null,null,37,""]
[null,null,null,"",null,"",null,"",null,null,null,38,""]
[null,null,null,"",null,"",null,"",null,null,null,39,""]
[null,null,null,"",null,"",null,"",null,null,null,40,""]
[null,null,null,"",null,"",null,"",null,null,null,41,""]
[null,null,null,"",null,"",null,"",null,null,null,42,""]
[null,null,null,"",null,"",null,"",null,null,null,43,""]
[null,null,null,"",null,"",null,"",null,null,null,44,""]
[null,null,null,"",null,"",null,"",null,null,null,45,""]

{"sheet":"separator","index":9,"n_rows":0,"n_cols":0,"rows_kept":0,"cut":false,"hidden":true,"merged":[]}

{"sheet":"Kanały","index":10,"n_rows":304,"n_cols":12,"rows_kept":304,"cut":false,"hidden":true,"merged":[[0,0,0,6],[1,1,1,2],[1,3,1,5]]}
["PRZEKROJE UŻYTECZNE KANAŁÓW ELEKTROINSTALACYJNYCH"]
["Typ kanału elektroinstalacyjnego","max. średnica kabla w kanale [mm]",null,"przekrój użyteczny kanału [mm^2]",null,null,"suma","ilość sekcji","szerokość","wysokość","maks.sekcja","min.sekcja"]
["LS 15X10 Bi",6,null,60,null,null,{"$f":"D3+E3+F3","v":60},1,15,10,{"$f":"MAX(D3:F3)","v":60},{"$f":"MIN(D3:F3)","v":60}]
["LS 12x12 Bi",null,null,56,null,null,{"$f":"D4+E4+F4","v":56},1,12,12,{"$f":"MAX(D4:F4)","v":56},{"$f":"MIN(D4:F4)","v":56}]
["LS 17x15 Bi",10,null,98,null,null,98,1,17,15,98,98]
["LS 20x12 Bi",7,null,110,null,null,110,1,20,12,110,110]
["LS 25x12 Bi",7,null,155,null,null,155,1,25,12,155,155]
["LS 20x18 Bi",14,null,240,null,null,240,1,20,18,240,240]
["LS 25x18 Bi",14,null,324,null,null,324,1,25,18,324,324]
["LS 35x18 Bi",14,null,380,null,null,380,1,35,18,380,380]
["LS 35x18 Bi/P",14,null,190,190,null,380,2,35,18,190,190]
["LS 50x18 Bi/P",14,null,290,290,null,580,2,50,18,290,290]
["LS 60x18 Bi/2P",14,null,220,250,220,690,3,60,18,250,220]
["LS 40x25 Bi",20,null,730,null,null,730,1,40,25,730,730]
["LS 35x30 Bi",25,null,780,null,null,780,1,35,30,780,780]
["LS 50x30Bi/P",13,20,380,710,null,1090,2,50,30,710,380]
["LS 40x40 Bi",25,null,1010,null,null,1010,1,40,40,1010,1010]
["LS 60x40 Bi",25,null,1550,null,null,1550,1,60,40,1550,1550]
["LS 60x40 Bi/P",25,null,1050,500,null,1550,2,60,40,1050,500]
["KS 90x40 Bi",25,null,2170,null,null,2170,1,90,40,2170,2170]
["KS 90x40 Bi/P",25,null,980,980,null,1960,2,90,40,980,980]
["KS 90x40 Bi z jedna przegrodą",25,null,590,1370,null,1960,2,90,40,1370,590]
["KS 90x40 Bi z dwiema przegrodami",25,null,590,270,905,1765,3,90,40,905,270]
["KS 90x60 Bi",null,null,3180,null,null,3180,1,90,60,3180,3180]
["KS 90x60 Bi z jedną przegrodą",null,null,910,2120,null,3030,2,90,60,2120,910]
["KS 90x60 Bi z dwiema przegrodami",null,null,910,490,1400,2800,3,90,60,1400,490]
["KP 90x40 Bi",25,null,2170,null,null,2170,1,90,40,2170,2170]
["KP 90x40 Bi z jedną przegrodą",25,null,590,1370,null,1960,2,90,40,1370,590]
["KP 90x40 Bi z dwiema przegrodami",25,null,590,270,905,1765,3,90,40,905,270]
["KP 90x40 Bi z uchwytem UCHKP",25,null,2100,null,null,2100,1,90,40,2100,2100]
["KP 90x60 Bi",null,null,3180,null,null,3180,1,90,60,3180,3180]
["KP 90x60 Bi z jedną przegrodą",null,null,910,2120,null,3030,2,90,60,2120,910]
["KP 90x60 Bi z dwiema przegrodami",null,null,910,490,1400,2800,3,90,60,1400,490]
["KP 90x60 Bi z uchwytem UCHKP",null,null,3110,null,null,3110,1,90,60,3110,3110]
["KP 90x60 Bi z puszką KD",null,null,227,227,null,454,2,90,60,227,227]
["KP 90x60 Bi z puszką KED80",null,null,1060,null,null,1060,1,90,60,1060,1060]
["KP 110x60 Bi",null,null,3930,null,null,3930,1,110,60,3930,3930]
["KP 110x60 Bi z jedną przegrodą",null,null,1210,2610,null,3820,2,110,60,2610,1210]
["KP 110x60 Bi z dwiema przegrodami",null,null,1210,490,1890,3590,3,110,60,1890,490]
["KP 110x60 Bi z uchwytem UCHKP",null,null,3860,null,null,3860,1,110,60,3860,3860]
["KP 110x60 Bi z puszką KD",null,null,605,605,null,1210,2,110,60,605,605]
["KP 110x60 Bi z puszką KED80",null,null,1810,null,null,1810,1,110,60,1810,1810]
["KP 130x60 Bi",null,null,4690,null,null,4690,1,130,60,4690,4690]
["KP 130x60 Bi z jedną przegrodą",null,null,1700,2800,null,4500,2,130,60,2800,1700]
["KP 130x60 Bi z dwiema przegrodami",null,null,1700,490,2080,4270,3,130,60,2080,490]
["KP 130x60 Bi z puszką KD",null,null,980,980,null,1960,2,130,60,980,980]
["KP 130x60 Bi z puszką KED80",null,null,2570,null,null,2570,1,130,60,2570,2570]
["KP 150x60 Bi",null,null,1930,3440,null,5370,2,150,60,3440,1930]
["KP 150x60 Bi z jedną przegrodą",null,null,1930,870,2500,5300,3,150,60,2500,870]
["KP 150x60 Bi z uchwytem UCHKP",null,null,1930,3370,null,5300,2,150,60,3370,1930]
["KP 150x60 Bi z puszką KD",null,null,1930,570,150,2650,3,150,60,1930,150]
["KP 150x60 Bi z puszką KED80",null,null,1930,1320,null,3250,2,150,60,1930,1320]
[]
["wg sumy"]
[{"$f":"C55+D55+E55","v":56},"LS 12x12 Bi",56,null,null,1]
[60,"LS 15X10 Bi",60,null,null,1]
[98,"LS 17x15 Bi",98,null,null,1]
[110,"LS 20x12 Bi",110,null,null,1]
[155,"LS 25x12 Bi",155,null,null,1]
[240,"LS 20x18 Bi",240,null,null,1]
[324,"LS 25x18 Bi",324,null,null,1]
[380,"LS 35x18 Bi",380,null,null,1]
[380,"LS 35x18 Bi/P",190,190,null,2]
[454,"KP 90x60 Bi z puszką KD",227,227,null,2]
[580,"LS 50x18 Bi/P",290,290,null,2]
[690,"LS 60x18 Bi/2P",220,250,220,3]
[730,"LS 40x25 Bi",730,null,null,1]
[780,"LS 35x30 Bi",780,null,null,1]
[1010,"LS 40x40 Bi",1010,null,null,1]
[1060,"KP 90x60 Bi z puszką KED80",1060,null,null,1]
[1090,"LS 50x30Bi/P",380,710,null,2]
[1210,"KP 110x60 Bi z puszką KD",605,605,null,2]
[1550,"LS 60x40 Bi",1550,null,null,1]
[1550,"LS 60x40 Bi/P",1050,500,null,2]
[1765,"KS 90x40 Bi z dwiema przegrodami",590,270,905,3]
[1765,"KP 90x40 Bi z dwiema przegrodami",590,270,905,3]
[1810,"KP 110x60 Bi z puszką KED80",1810,null,null,1]
[1960,"KS 90x40 Bi/P",980,980,null,2]
[1960,"KS 90x40 Bi z jedna przegrodą",590,1370,null,2]
[1960,"KP 90x40 Bi z jedną przegrodą",590,1370,null,2]
[1960,"KP 130x60 Bi z puszką KD",980,980,null,2]
[2100,"KP 90x40 Bi z uchwytem UCHKP",2100,null,null,1]
[2170,"KS 90x40 Bi",2170,null,null,1]
[2170,"KP 90x40 Bi",2170,null,null,1]
[2570,"KP 130x60 Bi z puszką KED80",2570,null,null,1]
[2650,"KP 150x60 Bi z puszką KD",1930,570,150,3]
[{"$f":"C87+D87+E87","v":2800},"KS 90x60 Bi z dwiema przegrodami",910,490,1400,3]
[2800,"KP 90x60 Bi z dwiema przegrodami",910,490,1400,3]
[3030,"KS 90x60 Bi z jedną przegrodą",910,2120,null,2]
[3030,"KP 90x60 Bi z jedną przegrodą",910,2120,null,2]
[3110,"KP 90x60 Bi z uchwytem UCHKP",3110,null,null,1]
[3180,"KS 90x60 Bi",3180,null,null,1]
[3180,"KP 90x60 Bi",3180,null,null,1]
[3250,"KP 150x60 Bi z puszką KED80",1930,1320,null,2]
[3590,"KP 110x60 Bi z dwiema przegrodami",1210,490,1890,3]
[3820,"KP 110x60 Bi z jedną przegrodą",1210,2610,null,2]
[3860,"KP 110x60 Bi z uchwytem UCHKP",3860,null,null,1]
[3930,"KP 110x60 Bi",3930,null,null,1]
[4270,"KP 130x60 Bi z dwiema przegrodami",1700,490,2080,3]
[4500,"KP 130x60 Bi z jedną przegrodą",1700,2800,null,2]
[4690,"KP 130x60 Bi",4690,null,null,1]
[5300,"KP 150x60 Bi z jedną przegrodą",1930,870,2500,3]
[5300,"KP 150x60 Bi z uchwytem UCHKP",1930,3370,null,2]
[5370,"KP 150x60 Bi",1930,3440,null,2]
[]
[]
["wg największej przegrody"]
[{"$f":"MAX(C108:E108)","v":56},"LS 12x12 Bi",56,null,null,1]
[60,"LS 15X10 Bi",60,null,null,1]
[98,"LS 17x15 Bi",98,null,null,1]
[110,"LS 20x12 Bi",110,null,null,1]
[155,"LS 25x12 Bi",155,null,null,1]
[190,"LS 35x18 Bi/P",190,190,null,2]
[227,"KP 90x60 Bi z puszką KD",227,227,null,2]
[240,"LS 20x18 Bi",240,null,null,1]
[250,"LS 60x18 Bi/2P",220,250,220,3]
[290,"LS 50x18 Bi/P",290,290,null,2]
[324,"LS 25x18 Bi",324,null,null,1]
[380,"LS 35x18 Bi",380,null,null,1]
[605,"KP 110x60 Bi z puszką KD",605,605,null,2]
[710,"LS 50x30Bi/P",380,710,null,2]
[730,"LS 40x25 Bi",730,null,null,1]
[780,"LS 35x30 Bi",780,null,null,1]
[905,"KS 90x40 Bi z dwiema przegrodami",590,270,905,3]
[905,"KP 90x40 Bi z dwiema przegrodami",590,270,905,3]
[980,"KS 90x40 Bi/P",980,980,null,2]
[980,"KP 130x60 Bi z puszką KD",980,980,null,2]
[1010,"LS 40x40 Bi",1010,null,null,1]
[1050,"LS 60x40 Bi/P",1050,500,null,2]
[1060,"KP 90x60 Bi z puszką KED80",1060,null,null,1]
[1370,"KS 90x40 Bi z jedna przegrodą",590,1370,null,2]
[1370,"KP 90x40 Bi z jedną przegrodą",590,1370,null,2]
[1400,"KS 90x60 Bi z dwiema przegrodami",910,490,1400,3]
[1400,"KP 90x60 Bi z dwiema przegrodami",910,490,1400,3]
[1550,"LS 60x40 Bi",1550,null,null,1]
[1810,"KP 110x60 Bi z puszką KED80",1810,null,null,1]
[1890,"KP 110x60 Bi z dwiema przegrodami",1210,490,1890,3]
[1930,"KP 150x60 Bi z puszką KD",1930,570,150,3]
[{"$f":"MAX(C139:E139)","v":1930},"KP 150x60 Bi z puszką KED80",1930,1320,null,2]
[2080,"KP 130x60 Bi z dwiema przegrodami",1700,490,2080,3]
[2100,"KP 90x40 Bi z uchwytem UCHKP",2100,null,null,1]
[2120,"KS 90x60 Bi z jedną przegrodą",910,2120,null,2]
[2120,"KP 90x60 Bi z jedną przegrodą",910,2120,null,2]
[2170,"KS 90x40 Bi",2170,null,null,1]
[2170,"KP 90x40 Bi",2170,null,null,1]
[2500,"KP 150x60 Bi z jedną przegrodą",1930,870,2500,3]
[2570,"KP 130x60 Bi z puszką KED80",2570,null,null,1]
[2610,"KP 110x60 Bi z jedną przegrodą",1210,2610,null,2]
[2800,"KP 130x60 Bi z jedną przegrodą",1700,2800,null,2]
[3110,"KP 90x60 Bi z uchwytem UCHKP",3110,null,null,1]
[3180,"KS 90x60 Bi",3180,null,null,1]
[3180,"KP 90x60 Bi",3180,null,null,1]
[3370,"KP 150x60 Bi z uchwytem UCHKP",1930,3370,null,2]
[3440,"KP 150x60 Bi",1930,3440,null,2]
[3860,"KP 110x60 Bi z uchwytem UCHKP",3860,null,null,1]
[3930,"KP 110x60 Bi",3930,null,null,1]
[4690,"KP 130x60 Bi",4690,null,null,1]
[]
["wg najmniejszej przegrody"]
[{"$f":"MIN(C160:E160)","v":56},"LS 12x12 Bi",56,null,null,1]
[60,"LS 15X10 Bi",60,null,null,1]
[98,"LS 17x15 Bi",98,null,null,1]
[110,"LS 20x12 Bi",110,null,null,1]
[150,"KP 150x60 Bi z puszką KD",1930,570,150,3]
[155,"LS 25x12 Bi",155,null,null,1]
[190,"LS 35x18 Bi/P",190,190,null,2]
[220,"LS 60x18 Bi/2P",220,250,220,3]
[227,"KP 90x60 Bi z puszką KD",227,227,null,2]
[240,"LS 20x18 Bi",240,null,null,1]
[270,"KS 90x40 Bi z dwiema przegrodami",590,270,905,3]
[270,"KP 90x40 Bi z dwiema przegrodami",590,270,905,3]
[290,"LS 50x18 Bi/P",290,290,null,2]
[324,"LS 25x18 Bi",324,null,null,1]
[380,"LS 35x18 Bi",380,null,null,1]
[380,"LS 50x30Bi/P",380,710,null,2]
[490,"KS 90x60 Bi z dwiema przegrodami",910,490,1400,3]
[490,"KP 90x60 Bi z dwiema przegrodami",910,490,1400,3]
[490,"KP 110x60 Bi z dwiema przegrodami",1210,490,1890,3]
[490,"KP 130x60 Bi z dwiema przegrodami",1700,490,2080,3]
[500,"LS 60x40 Bi/P",1050,500,null,2]
[590,"KS 90x40 Bi z jedna przegrodą",590,1370,null,2]
[590,"KP 90x40 Bi z jedną przegrodą",590,1370,null,2]
[605,"KP 110x60 Bi z puszką KD",605,605,null,2]
[730,"LS 40x25 Bi",730,null,null,1]
[780,"LS 35x30 Bi",780,null,null,1]
[870,"KP 150x60 Bi z jedną przegrodą",1930,870,2500,3]
[910,"KS 90x60 Bi z jedną przegrodą",910,2120,null,2]
[910,"KP 90x60 Bi z jedną przegrodą",910,2120,null,2]
[980,"KS 90x40 Bi/P",980,980,null,2]
[980,"KP 130x60 Bi z puszką KD",980,980,null,2]
[{"$f":"MIN(C191:E191)","v":1010},"LS 40x40 Bi",1010,null,null,1]
[1060,"KP 90x60 Bi z puszką KED80",1060,null,null,1]
[1210,"KP 110x60 Bi z jedną przegrodą",1210,2610,null,2]
[1320,"KP 150x60 Bi z puszką KED80",1930,1320,null,2]
[1550,"LS 60x40 Bi",1550,null,null,1]
[1700,"KP 130x60 Bi z jedną przegrodą",1700,2800,null,2]
[1810,"KP 110x60 Bi z puszką KED80",1810,null,null,1]
[1930,"KP 150x60 Bi",1930,3440,null,2]
[1930,"KP 150x60 Bi z uchwytem UCHKP",1930,3370,null,2]
[2100,"KP 90x40 Bi z uchwytem UCHKP",2100,null,null,1]
[2170,"KS 90x40 Bi",2170,null,null,1]
[2170,"KP 90x40 Bi",2170,null,null,1]
[2570,"KP 130x60 Bi z puszką KED80",2570,null,null,1]
[3110,"KP 90x60 Bi z uchwytem UCHKP",3110,null,null,1]
[3180,"KS 90x60 Bi",3180,null,null,1]
[3180,"KP 90x60 Bi",3180,null,null,1]
[3860,"KP 110x60 Bi z uchwytem UCHKP",3860,null,null,1]
[3930,"KP 110x60 Bi",3930,null,null,1]
[4690,"KP 130x60 Bi",4690,null,null,1]
[]
["Ilość sekcji"]
[1]
[2]
[3]
[]
[]
["kanały 1 sekcyjne"]
[{"$f":"C218+D218+E218","v":56},"LS 12x12 Bi",56,null,null,1]
[60,"LS 15X10 Bi",60,null,null,1]
[98,"LS 17x15 Bi",98,null,null,1]
[110,"LS 20x12 Bi",110,null,null,1]
[155,"LS 25x12 Bi",155,null,null,1]
[240,"LS 20x18 Bi",240,null,null,1]
[324,"LS 25x18 Bi",324,null,null,1]
[380,"LS 35x18 Bi",380,null,null,1]
[730,"LS 40x25 Bi",730,null,null,1]
[780,"LS 35x30 Bi",780,null,null,1]
[1010,"LS 40x40 Bi",1010,null,null,1]
[1060,"KP 90x60 Bi z puszką KED80",1060,null,null,1]
[1550,"LS 60x40 Bi",1550,null,null,1]
[1810,"KP 110x60 Bi z puszką KED80",1810,null,null,1]
[2100,"KP 90x40 Bi z uchwytem UCHKP",2100,null,null,1]
[2170,"KS 90x40 Bi",2170,null,null,1]
[2170,"KP 90x40 Bi",2170,null,null,1]
[2570,"KP 130x60 Bi z puszką KED80",2570,null,null,1]
[3110,"KP 90x60 Bi z uchwytem UCHKP",3110,null,null,1]
[3180,"KS 90x60 Bi",3180,null,null,1]
[3180,"KP 90x60 Bi",3180,null,null,1]
[3860,"KP 110x60 Bi z uchwytem UCHKP",3860,null,null,1]
[3930,"KP 110x60 Bi",3930,null,null,1]
[4690,"KP 130x60 Bi",4690,null,null,1]
[]
[]
["kanały 2 sekcyjne"]
[{"$f":"C245","v":190},"LS 35x18 Bi/P",190,190,null,2]
[{"$f":"C246","v":227},"KP 90x60 Bi z puszką KD",227,227,null,2]
[{"$f":"C247","v":290},"LS 50x18 Bi/P",290,290,null,2]
[{"$f":"C248","v":380},"LS 50x30Bi/P",380,710,null,2]
[{"$f":"D249","v":500},"LS 60x40 Bi/P",1050,500,null,2]
[{"$f":"C250","v":590},"KS 90x40 Bi z jedna przegrodą",590,1370,null,2]
[{"$f":"C251","v":590},"KP 90x40 Bi z jedną przegrodą",590,1370,null,2]
[{"$f":"C252","v":605},"KP 110x60 Bi z puszką KD",605,605,null,2]
[{"$f":"D253","v":710},"LS 50x30Bi/P",380,710,null,2]
[{"$f":"C254","v":910},"KS 90x60 Bi z jedną przegrodą",910,2120,null,2]
[910,"KP 90x60 Bi z jedną przegrodą",910,2120,null,2]
[980,"KS 90x40 Bi/P",980,980,null,2]
[980,"KP 130x60 Bi z puszką KD",980,980,null,2]
[1050,"LS 60x40 Bi/P",1050,500,null,2]
[1210,"KP 110x60 Bi z jedną przegrodą",1210,2610,null,2]
[{"$f":"D260","v":1320},"KP 150x60 Bi z puszką KED80",1930,1320,null,2]
[{"$f":"D261","v":1370},"KS 90x40 Bi z jedna przegrodą",590,1370,null,2]
[{"$f":"D262","v":1370},"KP 90x40 Bi z jedną przegrodą",590,1370,null,2]
[{"$f":"C263","v":1700},"KP 130x60 Bi z jedną przegrodą",1700,2800,null,2]
[{"$f":"C264","v":1930},"KP 150x60 Bi z puszką KED80",1930,1320,null,2]
[{"$f":"C265","v":1930},"KP 150x60 Bi z uchwytem UCHKP",1930,3370,null,2]
[{"$f":"C266","v":1930},"KP 150x60 Bi",1930,3440,null,2]
[{"$f":"D267","v":2120},"KS 90x60 Bi z jedną przegrodą",910,2120,null,2]
[2120,"KP 90x60 Bi z jedną przegrodą",910,2120,null,2]
[2610,"KP 110x60 Bi z jedną przegrodą",1210,2610,null,2]
[2800,"KP 130x60 Bi z jedną przegrodą",1700,2800,null,2]
[3370,"KP 150x60 Bi z uchwytem UCHKP",1930,3370,null,2]
[3440,"KP 150x60 Bi",1930,3440,null,2]
[]
[]
["kanały 3 sekcyjne"]
[{"$f":"E276","v":150},"KP 150x60 Bi z puszką KD",1930,570,150,3]
[{"$f":"C277","v":220},"LS 60x18 Bi/2P",220,250,220,3]
[{"$f":"D278","v":250},"LS 60x18 Bi/2P",220,250,220,3]
[270,"KS 90x40 Bi z dwiema przegrodami",590,270,905,3]
[270,"KP 90x40 Bi z dwiema przegrodami",590,270,905,3]
[490,"KS 90x60 Bi z dwiema przegrodami",910,490,1400,3]
[490,"KP 90x60 Bi z dwiema przegrodami",910,490,1400,3]
[490,"KP 110x60 Bi z dwiema przegrodami",1210,490,1890,3]
[490,"KP 130x60 Bi z dwiema przegrodami",1700,490,2080,3]
[{"$f":"E285","v":490},"KP 150x60 Bi z dwiema przegrodami",1930,870,490,3]
[{"$f":"D286","v":570},"KP 150x60 Bi z puszką KD",1930,570,150,3]
[{"$f":"C287","v":590},"KS 90x40 Bi z dwiema przegrodami",590,270,905,3]
[{"$f":"C288","v":590},"KP 90x40 Bi z dwiema przegrodami",590,270,905,3]
[{"$f":"D289","v":870},"KP 150x60 Bi z dwiema przegrodami",1930,870,490,3]
[{"$f":"D290","v":870},"KP 150x60 Bi z jedną przegrodą",1930,870,2500,3]
[{"$f":"E291","v":905},"KS 90x40 Bi z dwiema przegrodami",590,270,905,3]
[{"$f":"E292","v":905},"KP 90x40 Bi z dwiema przegrodami",590,270,905,3]
[{"$f":"C293","v":910},"KS 90x60 Bi z dwiema przegrodami",910,490,1400,3]
[{"$f":"C294","v":910},"KP 90x60 Bi z dwiema przegrodami",910,490,1400,3]
[{"$f":"C295","v":1210},"KP 110x60 Bi z dwiema przegrodami",1210,490,1890,3]
[{"$f":"E296","v":1400},"KS 90x60 Bi z dwiema przegrodami",910,490,1400,3]
[{"$f":"E297","v":1400},"KP 90x60 Bi z dwiema przegrodami",910,490,1400,3]
[{"$f":"C298","v":1700},"KP 130x60 Bi z dwiema przegrodami",1700,490,2080,3]
[{"$f":"E299","v":1890},"KP 110x60 Bi z dwiema przegrodami",1210,490,1890,3]
[{"$f":"C300","v":1930},"KP 150x60 Bi z puszką KD",1930,570,150,3]
[{"$f":"C301","v":1930},"KP 150x60 Bi z dwiema przegrodami",1930,870,490,3]
[{"$f":"C302","v":1930},"KP 150x60 Bi z jedną przegrodą",1930,870,2500,3]
[{"$f":"E303","v":2080},"KP 130x60 Bi z dwiema przegrodami",1700,490,2080,3]
[{"$f":"E304","v":2500},"KP 150x60 Bi z jedną przegrodą",1930,870,2500,3]

{"sheet":"Typy_kabli","index":11,"n_rows":95,"n_cols":9,"rows_kept":95,"cut":false,"hidden":true,"merged":[]}
["Typy kabli EmiterNet"]
["kod towaru","nazwa","kategoria ","typ","średnica [mm]","klasyfikacja rozdzielania","nr klas.rozdz.","promień gięcia przy układaniu","promień gięcia eksloatacja"]
["K/EMITERNET-UTP5EPVC-STD.","Kabel Emiter Net UTP (U/UTP) kat.5e 350 MHz, drut,  standard, szary","5E","U/UTP",4.7,"b",2,40,20]
["K/EMITERNET-UTP5EPVC.","Kabel Emiter Net UTP (U/UTP) kat.5e 350 MHz,drut 4 x 2 x 24 AWG","5E","U/UTP",5,"b",2,40,20]
["K/EMITERNET-UTP6PVC-STD.","Kabel Emiter Net UTP (U/UTP) kat. 6 450 MHz, drut, standard, PVC, szary",6,"U/UTP",6,"b",2,60,30]
["K/EMITERNET-UTP6LSOH.","Kabel Emiter Net UTP (U/UTP) kat. 6 450 MHz, drut 4 x 2 x 23 AWG,LS0H",6,"U/UTP",6.5,"b",2,65,35]
["K/EMITERNET-UTP6LS0HB2CA","Kabel Emiter Net U/UTP kat. 6 450 MHz B2ca LS0H, drut 4 x 2 x 23 AWG",6,"U/UTP",6.3,"b",2,63,35]
["K/EMITERNET-FTP5E.","Kabel Emiter Net FTP (F/UTP) kat. 5e 350 MHz, drut  4 x 2 x 24 AWG , PVC","5E","F/UTP",6,"c",3,50,25]
["K/EMITERNET-FTP6PVC-STD.","Kabel teleinformatyczny, FTP (F/UTP) kat.6 450 MHz, drut 4x2x23AWG, PVC",6,"F/UTP",7.5,"c",3,80,50]
["K/EMITERNET-FTP6LS0H.","Kabel Emiter Net FTP (F/UTP) kat 6 450 MHz, drut 4 x2 x 23AWG, LSZH-FR",6,"F/UTP",7.3,"c",3,80,50]
["K/EMITERNET-SFTP7LS0H.","Kabel Emiter Net SFTP (S/FTP) kat 7 1000MHz, drut 4 x2 x 23AWG, LSZH-FR",7,"S/FTP",7.5,"d",4,150,75]
["K/EMITERNET-SFTP7LS0HB2CA.","Kabel Emiter Net S/FTP kat 7 1000MHz B2ca LSZH-FR, drut 4 x2 x 23AWG",7,"S/FTP",8,"d",4,160,80]
["K/EMITERNET-UTP5EOutdoor.","Kabel  EmiterNet zewnętrzny PVC+PE UTP (U/UTP) kat.5e, drut 4x2x0,5 PE","5E","U/UTP",6.6,"b",2,70,35]
["K/EMITERNET-UTP5EOut-GEL.","Kabel EmiterNet zewnętrzny żelowany PE UTP (U/UTP) kat.5e, drut 4x2x0,5 PE+GEL","5E","U/UTP",5.2,"b",2,50,25]
["K/EMITERNET-FTP5EOut-GEL.","Kabel EmiterNet zewnętrzny żelowany PE FTP (F/UTP) kat.5e, drut 4x2x0,5 PE+GEL","5E","F/UTP",6.2,"c",3,60,30]
["K/EMITERNET-UTP6Out-GEL.","Kabel EmiterNet zewnętrzny żelowany PE UTP (U/UTP) kat.6 żel, drut 4x2x0,57 PE+GEL",6,"U/UTP",6.7,"b",2,60,30]
[]
[]
[]
[]
[]
[]
[]
[]
[]
[]
[]
[]
[]
[]
[]
[]
[]
[]
[]
[]
[]
[]
[]
[]
[]
[]
[]
[]
["Minimalna separacja"]
["klasyfikacja rozdzielania","kanał bez przegrody elektromagnetycznej","PCV","PCV z przegrodą z tworzywa","kanał  metalowy bez pokrywy","kanał perforowany z pokrywą (*)","kanał metalowy pełny z pokrywą"]
["d",10,10,10,8,5,0]
["c",50,50,50,38,25,0]
["b",100,100,100,75,50,0]
[]
["Współczynnik mocy",null,"Ilość obwodów","współczynnik mocy P"]
["20A/1f",null,"od 1 do 3",0.2,3,{"$f":"E52/$E$56","v":0.2}]
[null,null,"od 4 do 6",0.4,6,{"$f":"E53/$E$56","v":0.4}]
[null,null,"od 7 do 9",0.6,9,0.6]
[null,null,"od 10 do 12",0.8,12,0.8]
[null,null,"od 13 do 15",1,15,1]
[null,null,"od 16 do 30",2,30,2]
[null,null,"od 31 do 45",3,45,3]
[null,null,"od 46 do 60",4,60,4]
[null,null,"od 61 do 75",5,75,5]
[null,null,"> 75",6,90,6]
[]
["Rodzaj kanału","b","c","d"]
["kanał/rura bez przegrody elektromagnetycznej",100,50,10,"separacja bez przegrody elektromagnetycznej"]
["PCV",100,50,10,"separacja bez przegrody elektromagnetycznej"]
["PCV z przegrodą z tworzywa",100,50,10,"separacja bez przegrody elektromagnetycznej"]
["metalowy bez pokrywy",75,38,8,"odpowiednik kanału siatkowego (z wyłączeniem drabinek) o rozmiarze oczka 50x100mm lub stalowego kanału bez pokrywy (korytka) o grubości ścianki < 1mm i większej niż 20% równomiernie rozprowadzonej powierzchni perforowanej"]
["perforowany z pokrywą",50,25,5,"odpowiednik stalowego kanału bez pokrywy (korytka) o grubości ścianki 1mm i nie więcej niż 20% równomiernie rozprowadzonej powierzchni perforowanej; górna powierzchnia instalowanych kabli powinna znajdować się co najmniej 10mm poniżej wierzchołka przegrody"]
["metalowy pełny z pokrywą",0,0,0,"odpowiednik stalowego kanału kablowego o grubości  ścianek 1,5mm; w przypadku kanałów o ściankach mniejszej grubości odstęp separacyjny należy zwiększyć lub przyjąć odstęp separacyjny, jak dla kanału perforowanego lub otwartego"]
[]
["Rodzaj kabla zasilającego"]
["1f",1]
["3f",3]
[]
["Obciążalność prądowa kabli"]
["16A 230V",20]
["20A 230V",20]
["25A 230V",25]
["32A 230V",32]
["40A 230V",40]
["50A 230V",50]
["64A 230V",64]
[]
["TAK",1]
["NIE",0]
[]
["wiecej krótszych torów",1]
["rozkład gniazd równomierny",2]
["więcej dłuższych torów",3]
[]
["Wg powierzchni użytkowej obiektu",1]
["Wg podanej ilości punktów abonenckich",2]
[]
["panele krosowe narzędziowe",1]
["panele krosowe beznarzędziowe",2]

{"sheet":"Kable_sygnałowe","index":12,"n_rows":78,"n_cols":4,"rows_kept":78,"cut":false,"hidden":true,"merged":[[34,0,77,0],[0,0,0,3],[16,0,24,0],[25,0,31,0],[32,0,33,0],[2,0,15,0]]}
["PRZEKROJE UŻYTECZNE KABLI SYGNAŁOWYCH"]
[null,"Typy kabli","Średnica zew. kabla [mm]","Przekrój użyteczny kabla [mm^2]"]
["kable EmiterNet",{"$f":"Typy_kabli!A3","v":"K/EMITERNET-UTP5EPVC-STD."},{"$f":"Typy_kabli!E3","v":4.7},{"$f":"ROUND(PI()*C3*C3/4*1.2732395,0)","v":22}]
[null,{"$f":"Typy_kabli!A4","v":"K/EMITERNET-UTP5EPVC."},{"$f":"Typy_kabli!E4","v":5},{"$f":"ROUND(PI()*C4*C4/4*1.2732395,0)","v":25}]
[null,{"$f":"Typy_kabli!A5","v":"K/EMITERNET-UTP6PVC-STD."},{"$f":"Typy_kabli!E5","v":6},36]
[null,{"$f":"Typy_kabli!A6","v":"K/EMITERNET-UTP6LSOH."},{"$f":"Typy_kabli!E6","v":6.5},42]
[null,{"$f":"Typy_kabli!A7","v":"K/EMITERNET-UTP6LS0HB2CA"},{"$f":"Typy_kabli!E7","v":6.3},40]
[null,{"$f":"Typy_kabli!A8","v":"K/EMITERNET-FTP5E."},{"$f":"Typy_kabli!E8","v":6},36]
[null,{"$f":"Typy_kabli!A9","v":"K/EMITERNET-FTP6PVC-STD."},{"$f":"Typy_kabli!E9","v":7.5},56]
[null,{"$f":"Typy_kabli!A10","v":"K/EMITERNET-FTP6LS0H."},{"$f":"Typy_kabli!E10","v":7.3},53]
[null,{"$f":"Typy_kabli!A11","v":"K/EMITERNET-SFTP7LS0H."},{"$f":"Typy_kabli!E11","v":7.5},56]
[null,{"$f":"Typy_kabli!A12","v":"K/EMITERNET-SFTP7LS0HB2CA."},{"$f":"Typy_kabli!E12","v":8},64]
[null,{"$f":"Typy_kabli!A13","v":"K/EMITERNET-UTP5EOutdoor."},{"$f":"Typy_kabli!E13","v":6.6},44]
[null,{"$f":"Typy_kabli!A14","v":"K/EMITERNET-UTP5EOut-GEL."},{"$f":"Typy_kabli!E14","v":5.2},27]
[null,{"$f":"Typy_kabli!A15","v":"K/EMITERNET-FTP5EOut-GEL."},{"$f":"Typy_kabli!E15","v":6.2},38]
[null,{"$f":"Typy_kabli!A16","v":"K/EMITERNET-UTP6Out-GEL."},{"$f":"Typy_kabli!E16","v":6.7},45]
["do instalacji alarmowych i przeciwpożarowych","YTDY 2 x 0,5",3,9]
[null,"YTDY 4 x 0,5",3,9]
[null,"YTDY 6 x 0,5",4,16]
[null,"YTDY 8 x 0,5",4,16]
[null,"YTDY 10 x 0,5",5,25]
[null,"YTDY 12 x 0,5",5,25]
[null,"YTDY 14 x 0,5",5,25]
[null,"YTDY 16 x 0,5",6,36]
[null,"YTDY 20 x 0,5",7,49]
[null,"TKSY 1 x 2 x 0,5",4,16]
[null,"YTKSY 1 x 2 x 0,5",3,9]
[null,"YTKSY 1 x 4 x 0,5",4,16]
[null,"YTKSY 3 x 2 x 0,5",5,25]
[null,"YTKSY 5 x 2 x 0,5",5,25]
[null,"YTKSY 7 x 2 x 0,5",6,36]
[null,"YTKSY 10 x 2 x 0,5",7,49]
["antenowe","YWD 75 - 1,15/2,25",7.4,55]
[null,"YWD 75 - 0,59/3,7",3.9,15]
[null,"YDY 1 x 1,5 mm2",6.6,44]
[null,"YDY 1 x 2,5 mm2",7,49]
[null,"YDY 1 x 4 mm2",7.6,58]
[null,"YDY 1 x 6 mm2",8.1999999999999993,68]
[null,"YDY 1 x 10 mm2",9.1999999999999993,85]
[null,"YDY 1 x 16 mm2",10.5,111]
[null,"YDY 1 x 25 mm2",12.5,157]
[null,"YDY 1 x 35 mm2",13.5,183]
[null,"YDY 1 x 50 mm2",15,225]
[null,"YDY 2 x 1,5 mm2",10.5,111]
[null,"YDY 2 x 2,5 mm2",11.5,133]
[null,"YDY 2 x 4 mm2",13,169]
[null,"YDY 2 x 6 mm2",14,196]
[null,"YDY 2 x 10 mm2",16,256]
[null,"YDY 2 x 16 mm2",18.5,245]
[null,"YDY 2 x 25 mm2",22,484]
[null,"YDY 2 x 35 mm2",24.5,601]
[null,"YDY 3 x 1,5 mm2",11,121]
[null,"YDY 3 x 2,5 mm2",12.5,157]
[null,"YDY 3 x 4 mm2",13.5,183]
[null,"YDY 3 x 6 mm2",15,225]
[null,"YDY 3 x 10 mm2",17,289]
[null,"YDY 3 x 16 mm2",19.5,381]
[null,"YDY 3 x 25 mm2",23.5,553]
[null,"YDY 3 x 35 mm2",26,676]
[null,"YDY 3 x 50 mm2",29,841]
[null,"YDY 4 x 1,5 mm2",12,144]
[null,"YDY 4 x 2,5 mm2",13,169]
[null,"YDY 4 x 4 mm2",14.5,211]
[null,"YDY 4 x 6 mm2",16,256]
[null,"YDY 4 x 10 mm2",18.5,343]
[null,"YDY 4 x 16 mm2",21,441]
[null,"YDY 4 x 25 mm2",25.5,651]
[null,"YDY 4 x 35 mm2",28.5,813]
[null,"YDY 4 x 50 mm2",32.5,1057]
[null,"YDY 5 x 1,5 mm2",13,169]
[null,"YDY 5 x 2,5 mm2",14.5,211]
[null,"YDY 5 x 4 mm2",16,256]
[null,"YDY 5 x 6 mm2",17.5,307]
[null,"YDY 5 x 10 mm2",20,400]
[null,"YDY 5 x 16 mm2",23,529]
[null,"YDY 5 x 25 mm2",28,784]
[null,"YDY 5 x 35 mm2",31.5,993]
[null,"Z043A/Z043B drop 2E 9/125",3,6]

{"sheet":"Kable_elektroenergetyczne","index":13,"n_rows":13,"n_cols":17,"rows_kept":13,"cut":false,"hidden":true,"merged":[[0,0,0,10],[1,1,1,10],[2,0,3,0],[2,1,2,2],[2,3,2,4],[2,5,2,6],[2,7,2,8],[2,9,2,10]]}
["PRZEKROJE UŻYTECZNE KABLI ELEKTROENERGETYCZNYCH"]
[null,"Kabel typu YDY"]
["Przekrój poj. żyły w kablu [mm^2]","1-żyłowy",null,"2-żyłowy",null,"3-żyłowy",null,"4-żyłowy",null,"5-żyłowy"]
[null,"Średnica zew. Kabla [mm]","Przekrój użyt. kabla [mm^2]","Średnica zew. Kabla [mm]","Przekrój użyt. kabla [mm^2]","Średnica zew. Kabla [mm]","Przekrój użyt. kabla [mm^2]","Średnica zew. Kabla [mm]","Przekrój użyt. kabla [mm^2]","Średnica zew. kabla [mm]","Przekrój użyt. kabla [mm^2]"]
[1.5,6.6,44,10.5,111,11,121,12,144,13,169,null,{"$f":"C5/(PI()*B5*B5/4)","v":1.2861005502375382},null,{"$f":"E5/(PI()*D5*D5/4)","v":1.2819010382367624},null,{"$f":"G5/(PI()*F5*F5/4)","v":1.2732395447351628}]
[2.5,7,49,11.5,133,12.5,157,13,169,14.5,211,null,{"$f":"C6/(PI()*B6*B6/4)","v":1.2732395447351628},null,1.2804601848754378,null,1.2793510945498914]
[4,7.6,58,13,169,13.5,183,14.5,211,16,256,null,1.2785300137576081,null,1.2732395447351628,null,1.2784792136435379]
[6,8.1999999999999993,68,14,196,15,225,16,256,17.5,307,null,1.2876307115108727,null,1.2732395447351628,null,1.2732395447351628]
[10,9.1999999999999993,85,16,256,17,289,18.5,343,20,400,null,1.2786550248403692,null,1.2732395447351628,null,1.2732395447351625]
[16,10.5,111,18.5,245,19.5,381,21,441,23,529,null,1.2819010382367624,null,0.91144978366724572,null,1.2757508653362184]
[25,12.5,157,22,484,23.5,553,25.5,651,28,784,null,1.2793510945498914,null,1.2732395447351628,null,1.2749687066338524]
[35,13.5,183,24.5,601,26,676,28.5,813,31.5,993,null,1.2784792136435379,null,1.2748304312966812,null,1.2732395447351628]
[50,15,225,null,null,29,841,32.5,1057,null,null,null,1.2732395447351628,null,{"$error":"#DIV/0!"},null,1.2732395447351628]

{"sheet":"Szafy","index":14,"n_rows":104,"n_cols":7,"rows_kept":104,"cut":false,"hidden":true,"merged":[]}
["Kod szafy","Nazwa","typ","wysokość","szerokość","głębokość","opis skrócony"]
["EM/AS6406X","Szafa wisząca niedzielona 19'' 6U gł.450mm, niezmontowana, RAL 7035","wisząca",6,600,450,{"$f":" \" \"&D2&\"U \"&E2&\" x \"&F2&\" [mm]\"","v":" 6U 600 x 450 [mm]"}]
["EM/AS6409X","Szafa wisząca niedzielona 19'' 9U gł.450mm, niezmontowana, RAL 7035","wisząca",9,600,450,{"$f":" \" \"&D3&\"U \"&E3&\" x \"&F3&\" [mm]\"","v":" 9U 600 x 450 [mm]"}]
["EM/AS6412X","Szafa wisząca niedzielona 19'' 12U gł.450mm, niezmontowana, RAL 7035","wisząca",12,600,450," 12U 600 x 450 [mm]"]
["EM/AS6415X","Szafa wisząca niedzielona 19'' 15U gł.450mm, niezmontowana, RAL 7035","wisząca",15,600,450," 15U 600 x 450 [mm]"]
["EM/AS6418X","Szafa wisząca niedzielona 19'' 18U gł.450mm, niezmontowana, RAL 7035","wisząca",18,600,450," 18U 600 x 450 [mm]"]
["EM/AS6606X","Szafa wisząca niedzielona 19'' 6U gł.600mm, niezmontowana, RAL 7035","wisząca",6,600,600," 6U 600 x 600 [mm]"]
["EM/AS6609X","Szafa wisząca niedzielona 19'' 9U gł.600mm, niezmontowana, RAL 7035","wisząca",9,600,600," 9U 600 x 600 [mm]"]
["EM/AS6612X","Szafa wisząca niedzielona 19'' 12U gł.600mm, niezmontowana, RAL 7035","wisząca",12,600,600," 12U 600 x 600 [mm]"]
["EM/AS6615X","Szafa wisząca niedzielona 19'' 15U gł.600mm, niezmontowana, RAL 7035","wisząca",15,600,600," 15U 600 x 600 [mm]"]
["EM/SH02B5404-08","Szafa wisząca lekka niedzielona 19'' 4U, drzwi blacha/szkło, ściągane osłony boczne, 550×450×230 szer./gł./wys. mm; RAL: 9004,  w komplecie 10 śrub montażowych ","wisząca",4,550,450," 4U 550 x 450 [mm]"]
["EM/SH02B5406-08","Szafa wisząca lekka niedzielona 19'' 6U, drzwi blacha/szkło, ściągane osłony boczne, 550×450×320 szer./gł./wys. mm; RAL: 9004,  w komplecie 10 śrub montażowych ","wisząca",6,550,450," 6U 550 x 450 [mm]"]
["EM/SH02B5409-08","Szafa wisząca  lekka niedzielona 19'' 9U, drzwi blacha/szkło, ściągane osłony boczne, 550×450×455 szer./gł./wys. mm; RAL: 9004,  w komplecie 10 śrub montażowych ","wisząca",9,550,450," 9U 550 x 450 [mm]"]
["EM/SH02B5412-08","Szafa wisząca  lekka niedzielona 19'' 12U, drzwi blacha/szkło, ściągane osłony boczne, 550×450×590 szer./gł./wys. mm; RAL: 9004,  w komplecie 10 śrub montażowych ","wisząca",12,550,450," 12U 550 x 450 [mm]"]
["EM/AP6309-B","Szafa wisząca niedzielona 19'' 9U, drzwi całe z blachy, zamek, 600×300×500 szer./gł./wys. mm; RAL: 7044","wisząca",9,600,300," 9U 600 x 300 [mm]"]
["EM/AP6318-B","Szafa wisząca niedzielona 19'' 18U, drzwi całe z blachy, zamek, 600×300×910 szer./gł./wys. mm; RAL: 7044","wisząca",18,600,300," 18U 600 x 300 [mm]"]
["EM/AP6404","Szafa wisząca niedzielona 19'' 4U, drzwi blacha/szkło, ściągane osłony boczne z zamkiem,600×450×280 szer./gł./wys. mm; RAL: szafa 7044, drzwi 7010,  w komplecie półka stała 280mm i komplet 15 śrub montażowych ","wisząca",4,600,450," 4U 600 x 450 [mm]"]
["EM/AP6406","Szafa wisząca niedzielona 19'' 6U, drzwi blacha/szkło, ściągane osłony boczne z zamkiem,600×450×370 szer./gł./wys. mm; RAL: szafa 7044, drzwi 7010, , w komplecie półka stała 280mm i komplet 15 śrub montażowych ","wisząca",6,600,450," 6U 600 x 450 [mm]"]
["EM/AP6409","Szafa wisząca niedzielona 19'' 9U, drzwi blacha/szkło, ściągane osłony boczne z zamkiem, 600×450×500 szer./gł./wys. mm; RAL: szafa 7044, drzwi 7010, w komplecie półka stała 280mm i komplet 15 śrub montażowych","wisząca",9,600,450," 9U 600 x 450 [mm]"]
["EM/AP6412","Szafa wisząca niedzielona 19'' 12U, drzwi blacha/szkło, ściągane osłony boczne z zamkiem, 600×450×635 szer./gł./wys. mm; RAL: szafa 7044, drzwi 7010, w komplecie półka stała 280mm i komplet 15 śrub montażowych","wisząca",12,600,450," 12U 600 x 450 [mm]"]
["EM/AP6415","Szafa wisząca niedzielona 19'' 15U, drzwi blacha/szkło, ściągane osłony boczne z zamkiem, 600×450×770 szer./gł./wys. mm; RAL: szafa 7044, drzwi 7010, w komplecie półka stała 280mm i komplet 15 śrub montażowych","wisząca",15,600,450," 15U 600 x 450 [mm]"]
["EM/AP6418","Szafa wisząca niedzielona 19'' 18U, drzwi blacha/szkło, ściągane osłony boczne z zamkiem, 600×450×910 szer./gł./wys. mm; RAL: szafa 7044, drzwi 7010, w komplecie półka stała 280mm i komplet 15 śrub montażowych","wisząca",18,600,450," 18U 600 x 450 [mm]"]
["EM/AP6422","Szafa wisząca niedzielona 19'' 22U, drzwi blacha/szkło, ściągane osłony boczne z zamkiem, 600×450×1083 szer./gł./wys. mm; RAL: szafa 7044, drzwi 7010, w komplecie półka stała 280mm i komplet 15 śrub montażowych","wisząca",22,600,450," 22U 600 x 450 [mm]"]
["EM/AH6506","Szafa wisząca dzielona 19'' 6U, drzwi blacha/szkło, ściągane osłony boczne z zamkiem, tylna część na zamek 600×550×370 szer./gł./wys. mm; RAL: szafa 7044, drzwi 7010, w komplecie półka stała 280mm i komplet 15 śrub montażowych","wisząca",6,600,550," 6U 600 x 550 [mm]"]
["EM/AH6509","Szafa wisząca dzielona 19'' 9U, drzwi blacha/szkło, ściągane osłony boczne z zamkiem, tył zamek 600×550×500 szer./gł./wys. mm; RAL: szafa 7044, drzwi 7010, w komplecie półka stała 280mm i komplet 15 śrub montażowych","wisząca",9,600,550," 9U 600 x 550 [mm]"]
["EM/AH6512","Szafa wisząca dzielona 19'' 12U, drzwi blacha/szkło, ściągane osłony boczne z zamkiem, tył zamek 600×550×635 szer./gł./wys. mm; RAL: szafa 7044, drzwi 7010, w komplecie półka stała 280mm i komplet 15 śrub montażowych","wisząca",12,600,550," 12U 600 x 550 [mm]"]
["EM/AH6515","Szafa wisząca dzielona 19'' 15U, drzwi blacha/szkło, ściągane osłony boczne z zamkiem, tył zamek 600×550×770 szer./gł./wys. mm; RAL: szafa 7044, drzwi 7010, w komplecie półka stała 280mm i komplet 15 śrub montażowych","wisząca",15,600,550," 15U 600 x 550 [mm]"]
["EM/AH6518","Szafa wisząca dzielona 19'' 18U, drzwi blacha/szkło,ściągane osłony boczne z zamkiem, tył zamek 600×550×910 szer./gł./wys. mm; RAL: szafa 7044, drzwi 7010, w komplecie półka stała 280mm i komplet 15 śrub montażowych","wisząca",18,600,550," 18U 600 x 550 [mm]"]
["EM/AH6522","Szafa wisząca dzielona 19'' 22U, drzwi blacha/szkło, ściągane osłony boczne z zamkiem, tył zamek 600×550×1083 szer./gł./wys. mm; RAL: szafa 7044, drzwi 7010, w komplecie półka stała 280mm i komplet 15 śrub montażowych","wisząca",22,600,550," 22U 600 x 550 [mm]"]
["EM/AP6606","Szafa wisząca niedzielona 19'' 6U, drzwi blacha/szkło, ściągane osłony boczne z zamkiem,600×600×370 szer./gł./wys. mm; RAL: szafa 7044, drzwi 7010 , w komplecie półka stała 410mm i komplet 15 śrub montażowych ","wisząca",6,600,600," 6U 600 x 600 [mm]"]
["EM/AP6609","Szafa wisząca niedzielona 19'' 9U, drzwi blacha/szkło, ściągane osłony boczne z zamkiem, 600×600×500 szer./gł./wys. mm; RAL: szafa 7044, drzwi 7010, w komplecie półka stała 410mm i komplet 15 śrub montażowych","wisząca",9,600,600," 9U 600 x 600 [mm]"]
["EM/AP6612","Szafa wisząca niedzielona 19'' 12U, drzwi blacha/szkło, ściągane osłony boczne z zamkiem, 600×600×635 szer./gł./wys. mm; RAL: szafa 7044, drzwi 7010, w komplecie półka stała 410mm i komplet 15 śrub montażowych","wisząca",12,600,600," 12U 600 x 600 [mm]"]
["EM/AP6615","Szafa wisząca niedzielona 19'' 15U, drzwi blacha/szkło, ściągane osłony boczne z zamkiem, 600×600×770 szer./gł./wys. mm; RAL: szafa 7044, drzwi 7010, w komplecie półka stała 410mm i komplet 15 śrub montażowych","wisząca",15,600,600," 15U 600 x 600 [mm]"]
["EM/AP6406-B","Szafa wisząca niedzielona 19'' 6U, drzwi całe z blachy, ściągane osłony boczne z zamkiem,600×450×370 szer./gł./wys. mm; RAL: szafa 7044, drzwi 7010, , w komplecie półka stała 280mm i komplet 15 śrub montażowych","wisząca",6,600,600," 6U 600 x 600 [mm]"]
["EM/AP6409-B","Szafa wisząca niedzielona 19'' 9U, drzwi całe z blachy, ściągane osłony boczne z zamkiem, 600×450×500 szer./gł./wys. mm; RAL: szafa 7044, drzwi 7010, w komplecie półka stała 280mm i komplet 15 śrub montażowych","wisząca",9,600,600," 9U 600 x 600 [mm]"]
["EM/AP6412-B","Szafa wisząca niedzielona 19'' 12U, drzwi całe z blachy, ściągane osłony boczne z zamkiem, 600×450×635 szer./gł./wys. mm; RAL: szafa 7044, drzwi 7010, w komplecie półka stała 280mm i komplet 15 śrub montażowych","wisząca",12,600,600," 12U 600 x 600 [mm]"]
["EM/AP6606-B","Szafa wisząca niedzielona 19'' 6U, drzwi całe z blachy, ściągane osłony boczne z zamkiem,600×600×370 szer./gł./wys. mm; RAL: szafa 7044, drzwi 7010 , w komplecie półka stała 410mm i komplet 15 śrub montażowych","wisząca",6,600,600," 6U 600 x 600 [mm]"]
["EM/AP6609-B","Szafa wisząca niedzielona 19'' 9U, drzwi całe z blachy, ściągane osłony boczne z zamkiem, 600×600×500 szer./gł./wys. mm; RAL: szafa 7044, drzwi 7010, w komplecie półka stała 410mm i komplet 15 śrub montażowych","wisząca",9,600,600," 9U 600 x 600 [mm]"]
["EM/AP6612-B","Szafa wisząca niedzielona 19'' 12U, drzwi całe z blachy, ściągane osłony boczne z zamkiem, 600×600×635 szer./gł./wys. mm; RAL: szafa 7044, drzwi 7010, w komplecie półka stała 410mm i komplet 15 śrub montażowych","wisząca",12,600,600," 12U 600 x 600 [mm]"]
["EM/SH05D-6624","szafa ramowa stojąca EmiterNet Top, 24U, wym.  600X600x1180 (szer. x gł. x wys. mm), drzwi blacha/szkło; w komplecie panel 2 wentylatorowy z termostatem,  2 półki , stopki, przekładane drzwi prawe/lewe, zamykane na klucz drzwi boczne  i tylne, 20 śrub montażowych, RAL: szafa 7044, drzwi 7010","stojąca",24,600,600," 24U 600 x 600 [mm]"]
["EM/SH05D-8824","szafa ramowa stojąca EmiterNet Top, 24U, wym.  800X800x1180 (szer. x gł. x wys. mm), drzwi blacha/szkło; w komplecie panel 2 wentylatorowy z termostatem,  2 półki , stopki, przekładane drzwi prawe/lewe, zamykane na klucz drzwi boczne  i tylne, 20 śrub montażowych, RAL: szafa 7044, drzwi 7010","stojąca",24,800,800," 24U 800 x 800 [mm]"]
["EM/SH05D-6632","szafa ramowa stojąca EmiterNet Top, 32U, wym. 600X600x1540 (szer. x gł. x wys. mm), drzwi blacha/szkło; w komplecie panel 2 wentylatorowy z termostatem, 2 półki , stopki, przekładane drzwi prawe/lewe, zamykane na klucz drzwi boczne i tylne, 20 śrub montażowych, RAL: szafa 7044, drzwi 7010","stojąca",32,600,600," 32U 600 x 600 [mm]"]
["EM/SH05D-8832","szafa ramowa stojąca EmiterNet Top, 32U, wym. 800X800x1540 (szer. x gł. x wys. mm), drzwi blacha/szkło; w komplecie panel 2 wentylatorowy z termostatem, 2 półki , stopki, przekładane drzwi prawe/lewe, zamykane na klucz drzwi boczne i tylne, 20 śrub montażowych, RAL: szafa 7044, drzwi 7010","stojąca",32,800,800," 32U 800 x 800 [mm]"]
["EM/SH05D-6642","szafa ramowa stojąca EmiterNet Top, 42U, wym.  600X600x1980 (szer. x gł. x wys. mm), drzwi blacha/szkło; w komplecie panel 2 wentylatorowy z termostatem,  3 półki , stopki, przekładane drzwi prawe/lewe, zamykane na klucz drzwi boczne  i tylne, 20 śrub montażowych, RAL: szafa 7044, drzwi 7010","stojąca",42,600,600," 42U 600 x 600 [mm]"]
["EM/SH05D-6842","szafa ramowa stojąca EmiterNet Top, 42U, wym.  600X800x1980 (szer. x gł. x wys. mm),  drzwi blacha/szkło; w komplecie panel 4 wentylatorowy z termostatem,  3 półki , stopki, przekładane drzwi prawe/lewe, zamykane na klucz drzwi boczne  i tylne, 20 śrub montażowych, RAL: szafa 7044, drzwi 7010","stojąca",42,600,800," 42U 600 x 800 [mm]"]
["EM/SH05D-6042","szafa ramowa stojąca EmiterNet Top, 42U, wym. 600X1000x1980 (szer. x gł. x wys. mm), drzwi blacha/szkło; w komplecie panel 4 wentylatorowy z termostatem, 3 półki , stopki, przekładane drzwi prawe/lewe, zamykane na klucz drzwi boczne i tylne, 20 śrub montażowych, RAL: szafa 7044, drzwi 7010","stojąca",42,600,1000," 42U 600 x 1000 [mm]"]
["EM/SH05D-8842","szafa ramowa stojąca EmiterNet Top, 42U, wym.  800X800x1980 (szer. x gł. x wys. mm),  drzwi blacha/szkło; w komplecie panel 4 wentylatorowy z termostatem,  3 półki , stopki, przekładane drzwi prawe/lewe, zamykane na klucz drzwi boczne  i tylne, 20 śrub montażowych, RAL: szafa 7044, drzwi 7010","stojąca",42,800,800," 42U 800 x 800 [mm]"]
["EM/SH05D-8042","szafa ramowa stojąca EmiterNet Top, 42U, wym.  800X1000x1980 (szer. x gł. x wys. mm),  drzwi blacha/szkło; w komplecie panel 4 wentylatorowy z termostatem,  3 półki , stopki, przekładane drzwi prawe/lewe, zamykane na klucz drzwi boczne  i tylne, 20 śrub montażowych, RAL: szafa 7044, drzwi 7010","stojąca",42,800,1000," 42U 800 x 1000 [mm]"]
["EM/SH05D-8045","szafa ramowa stojąca EmiterNet Top, 45U, wym. 800X1000x2090 (szer. x gł. x wys. mm), drzwi blacha/szkło; w komplecie panel 4 wentylatorowy z termostatem, 3 półki , stopki, przekładane drzwi prawe/lewe, zamykane na klucz drzwi boczne i tylne, 20 śrub montażowych, RAL: szafa 7044, drzwi 7010","stojąca",45,800,1000," 45U 800 x 1000 [mm]"]
["EM/ND-8042","szafa serwerowa ramowa stojąca EmiterNet Top, 42U, wym.  800X1000x1980 (szer. x gł. x wys. mm),  drzwi przód/tył blacha perforowana; w komplecie panel 4 wentylatorowy z termostatem,  3 półki (blacha 2,0mm) , stopki, przekładane drzwi prawe/lewe, zamykane na klucz drzwi boczne  i tylne, 20 śrub montażowych, RAL: szafa 7044","stojąca",42,800,1000," 42U 800 x 1000 [mm]"]
["EM/NDB-6042CZ-S","szafa serwerowa ramowa stojąca EmiterNet Top-S, 42U, wym.  600X1000x1980 (szer. x gł. x wys. mm),  drzwi przód blacha/szkło; drzwi tył blacha pełna; panele boczne z blachy dzielone (2-częściowe); w komplecie panel 4 wentylatorowy z termostatem,  3 półki (blacha 2,0mm) , stopki, przekładane drzwi przednie prawe/lewe, zamykane na klucz drzwi przednie, tylne i boczne panele, RAL: 9004 (czarny)","stojąca",42,600,1000," 42U 600 x 1000 [mm]"]
["EM/NDB-6042CZ-P","szafa serwerowa ramowa stojąca EmiterNet Top-S, 42U, wym.  600X1000x1980 (szer. x gł. x wys. mm),  drzwi przód blacha perforowana; drzwi tył dzielone blacha perforowana; panele boczne z blachy dzielone (2-częściowe); w komplecie panel 4 wentylatorowy z termostatem,  3 półki (blacha 2,0mm) , stopki, przekładane drzwi przednie prawe/lewe, zamykane na klucz drzwi przednie, tylne i boczne panele, RAL: 9004 (czarny)","stojąca",42,600,1000," 42U 600 x 1000 [mm]"]
["EM/NDB-8042CZ-S","szafa serwerowa ramowa stojąca EmiterNet Top-S, 42U, wym.  800X1000x1980 (szer. x gł. x wys. mm),  drzwi przód blacha/szkło; drzwi tył blacha pełna; panele boczne z blachy dzielone (2-częściowe); w komplecie panel 4 wentylatorowy z termostatem,  3 półki (blacha 2,0mm) , stopki, przekładane drzwi przednie prawe/lewe, zamykane na klucz drzwi przednie, tylne i boczne panele, RAL: 9004 (czarny)","stojąca",42,800,1000," 42U 800 x 1000 [mm]"]
["EM/NDB-8042CZ-P","szafa serwerowa ramowa stojąca EmiterNet Top-S, 42U, wym.  800X1000x1980 (szer. x gł. x wys. mm),  drzwi przód blacha perforowana; drzwi tył dzielone blacha perforowana; panele boczne z blachy dzielone (2-częściowe); w komplecie panel 4 wentylatorowy z termostatem,  3 półki (blacha 2,0mm) , stopki, przekładane drzwi przednie prawe/lewe, zamykane na klucz drzwi przednie, tylne i boczne panele, RAL: 9004 (czarny)","stojąca",42,800,1000," 42U 800 x 1000 [mm]"]
[]
[]
["Elementy szafy"]
["1U panel 19\" 24xRJ45 STP kat. 6A",1]
["2U panel 19\" 48xRJ45 STP kat. 6A",2]
["1U panel 19\" 24xRJ45 UTP kat. 6",1]
["1U panel 19\" 24xRJ45 STP kat. 6",1]
["2U panel 19\" 48xRJ45 UTP kat. 6",2]
["2U panel 19\" 48xRJ45 STP kat. 6",2]
["1U panel 19\" 24xRJ45 UTP kat. 5e",1]
["1U panel 19\" 24xRJ45 STP kat. 5e",1]
["2U panel 19\" 48xRJ45 UTP kat. 5e",2]
["1U 19\" uchwyt kablowy z uszami",1]
["2U 19\" uchwyt kablowy z uszami",2]
["1U 19\" uchwyt kablowy z przepustem",1]
["2U 19\" uchwyt kablowy z przepustem",2]
["1U panel szczotkowy 19\"",1]
["1U panel 19\" z otworem",1]
["1U szuflada zapasu kabla 19\"",1]
["1U płyta wypełniająca 19\" ",1]
["2U płyta wypełniająca 19\" ",2]
["3U płyta wypełniająca 19\" ",3]
["1U 19\" panel 19\" zasilający 5x230V",1]
["1U 19\" panel zasilajacy 8x230V",1]
["1U 19\" panel zasilajacy 9x230V",1]
["1U 19\" półka",1]
["2U 19\" półka",2]
["3U 19\" półka",3]
["1U 19\" półka pod klawiaturę",1]
["1U router",1]
["1U przełącznik 24x10/100",1]
["1U przełącznik 8x10/100/1000",1]
["1U przełącznik 16x10/100/1000",1]
["1U przełącznik 24x10/100/1000",1]
["1U przełącznik 48x10/100/1000",1]
["2U przełącznik 48x10/100/1000",2]
["1U UPS 450VA",1]
["2U UPS 700VA",2]
["2U UPS 1000V",2]
["2U UPS 1500VA",2]
["2U IPS 2000VA",2]
["2U UPS 2200VA",2]
["3U UPS 3000VA",3]
["2U UPS moduł dodatkowej baterii",2]
["3U UPS moduł dodatkowej baterii",3]
["1U panel 19\"",1]
["2U panel 19\"",2]
["1U urządzenie 19\"",1]
["2U urzadzenie 19\"",2]
["3U urządzenie 19\"",3]